{"text_format":"1","workbook":"xlsx","n_sheets":3,"sheets":["Productivité","Données","Liste du personnel"],"not_rendered":{"charts":0,"images":0,"macros":1,"external_links":0,"defined_names":2,"comments":0,"pivot_tables":0},"unopened":[],"bounds":{"document_bytes":16777216,"sheet_cells":100000,"rows_first":2000,"rows_last":500,"rows_between":2000,"halvings":0,"cell_chars":16384,"cell_head_chars":4096},"cells_cut":0,"cells_raw":0,"read":"whole","date_system":"1900"}

{"sheet":"Productivité","index":0,"n_rows":63,"n_cols":35,"rows_kept":63,"cut":false,"hidden":false,"merged":[[62,24,63,24],[62,18,63,22],[32,32,33,37],[34,32,35,37],[36,32,37,37],[38,32,39,37],[31,32,31,37],[62,30,63,30],[30,24,31,24],[32,24,33,24],[34,24,35,24],[36,24,37,24],[38,24,39,24],[40,24,41,24],[42,24,43,24],[44,24,45,24],[46,24,47,24],[48,24,49,24],[50,24,51,24],[58,30,59,30],[60,30,61,30],[54,30,55,30],[56,30,57,30],[46,23,47,23],[46,28,47,28],[46,29,47,29],[46,25,47,25],[46,26,47,26],[46,27,47,27],[60,28,61,28],[46,30,47,30],[36,25,37,25],[36,26,37,26],[36,27,37,27],[56,25,57,25],[58,25,59,25],[60,25,61,25],[54,28,55,28],[52,30,53,30],[50,29,51,29],[48,29,49,29],[38,27,39,27],[40,28,41,28],[40,25,41,25],[40,26,41,26],[40,27,41,27],[42,28,43,28],[42,26,43,26],[42,27,43,27],[42,25,43,25],[52,25,53,25],[54,25,55,25],[52,28,53,28],[58,24,59,24],[60,24,61,24],[60,27,61,27],[52,24,53,24],[54,24,55,24],[56,24,57,24],[38,25,39,25],[38,26,39,26],[36,23,37,23],[36,28,37,28],[34,27,35,27],[62,25,63,27],[44,27,45,27],[48,28,49,28],[48,25,49,25],[48,26,49,26],[48,27,49,27],[50,28,51,28],[50,25,51,25],[50,26,51,26],[50,27,51,27],[62,28,63,28],[56,28,57,28],[58,28,59,28],[44,28,45,28],[44,25,45,25],[44,26,45,26],[52,27,53,27],[54,27,55,27],[52,26,53,26],[30,25,31,25],[20,23,21,23],[22,23,23,23],[24,23,25,23],[32,27,33,27],[34,23,35,23],[34,25,35,25],[30,26,31,26],[16,27,17,27],[18,27,19,27],[30,27,31,27],[20,27,21,27],[22,27,23,27],[24,27,25,27],[26,27,27,27],[28,27,29,27],[28,23,29,23],[28,26,29,26],[34,26,35,26],[28,25,29,25],[30,23,31,23],[32,23,33,23],[32,25,33,25],[32,26,33,26],[16,26,17,26],[18,26,19,26],[20,26,21,26],[22,26,23,26],[24,26,25,26],[26,26,27,26],[28,24,29,24],[16,25,17,25],[18,25,19,25],[20,25,21,25],[22,25,23,25],[24,25,25,25],[26,25,27,25],[16,23,17,23],[18,23,19,23],[26,23,27,23],[16,24,17,24],[18,24,19,24],[20,24,21,24],[22,24,23,24],[24,24,25,24],[26,24,27,24],[12,23,13,23],[14,23,15,23],[12,26,13,26],[14,26,15,26],[12,29,13,29],[14,29,15,29],[12,25,13,25],[14,25,15,25],[12,28,13,28],[14,28,15,28],[12,24,13,24],[14,24,15,24],[12,27,13,27],[14,27,15,27],[18,28,19,28],[16,28,17,28],[44,29,45,29],[20,29,21,29],[16,29,17,29],[18,29,19,29],[30,29,31,29],[22,29,23,29],[24,29,25,29],[26,29,27,29],[28,29,29,29],[34,29,35,29],[34,28,35,28],[40,29,41,29],[36,29,37,29],[42,29,43,29],[32,28,33,28],[32,29,33,29],[38,28,39,28],[38,29,39,29],[11,33,11,34],[16,33,16,34],[21,33,21,34],[26,33,26,34],[27,33,27,34],[30,30,31,30],[32,30,33,30],[34,30,35,30],[36,30,37,30],[28,30,29,30],[12,30,13,30],[14,30,15,30],[62,23,63,23],[60,23,61,23],[58,23,59,23],[56,23,57,23],[54,23,55,23],[52,23,53,23],[16,30,17,30],[18,30,19,30],[20,30,21,30],[22,30,23,30],[24,30,25,30],[26,30,27,30],[48,30,49,30],[50,30,51,30],[38,30,39,30],[40,30,41,30],[42,30,43,30],[44,30,45,30],[24,28,25,28],[22,28,23,28],[20,28,21,28],[28,28,29,28],[26,28,27,28],[30,28,31,28],[62,29,63,29],[60,29,61,29],[58,29,59,29],[56,29,57,29],[54,29,55,29],[52,29,53,29],[56,27,57,27],[58,27,59,27],[56,26,57,26],[58,26,59,26],[60,26,61,26],[54,26,55,26],[50,23,51,23],[48,23,49,23],[42,23,43,23],[44,23,45,23],[34,2,35,2],[36,2,37,2],[38,2,39,2],[40,2,41,2],[42,2,43,2],[44,2,45,2],[46,2,47,2],[48,2,49,2],[40,23,41,23],[38,23,39,23],[16,1,17,1],[18,1,19,1],[20,1,21,1],[22,1,23,1],[24,1,25,1],[26,1,27,1],[11,4,11,21],[46,1,47,1],[48,1,49,1],[16,2,17,2],[18,2,19,2],[20,2,21,2],[24,2,25,2],[26,2,27,2],[28,2,29,2],[30,2,31,2],[32,2,33,2],[12,1,13,1],[14,1,15,1],[12,2,13,2],[14,2,15,2],[50,1,51,1],[52,1,53,1],[54,1,55,1],[56,1,57,1],[58,1,59,1],[60,1,61,1],[22,2,23,2],[28,1,29,1],[30,1,31,1],[32,1,33,1],[34,1,35,1],[36,1,37,1],[38,1,39,1],[40,1,41,1],[42,1,43,1],[44,1,45,1],[50,2,51,2],[52,2,53,2],[54,2,55,2],[56,2,57,2],[58,2,59,2],[60,2,61,2],[1,11,3,27],[6,1,7,2],[6,3,7,30],[8,1,9,1],[8,12,9,13],[8,2,9,11],[8,14,9,16],[8,17,9,18],[8,29,9,30],[8,27,9,28],[8,19,9,26]]}
[]
[null,null,null,null,null,null,null,null,null,null,null,"Tableau de productivité"]
[]
[]
[]
[]
[null,null,null,"Matin"]
[]
[null,"RDQ 1 : ",{"$f":"IFERROR(VLOOKUP(O9,'Liste du personnel'!B:C,2,FALSE),0)","v":"RAPHAEL"},null,null,null,null,null,null,null,null,null,"N°Pers :",null,1,null,null,"RDQ 2 : ",null,{"$f":"IFERROR(VLOOKUP(AD9,'Liste du personnel'!B:C,2,FALSE),0)","v":"SAMUEL"},null,null,null,null,null,null,null,"N° Pers :",null,2]
[]
[null,null,"stop","stop"]
[null,"Chargeurs",null,null,"Numéros de courses - Nombres de pièces",null,null,null,null,null,null,null,null,null,null,null,null,null,null,null,null,null,null,"Rem","Pièces","Début","Fin","Arrêt","Heures","Prod rem","Prod pièces",null,null,"A charger"]
[null,{"$f":"IFERROR(VLOOKUP(C13,'Liste du personnel'!B:C,2,FALSE),0)","v":"YSEE"},56,"df456","df863",null,null,null,null,null,null,null,null,null,null,null,null,null,null,null,null,null,null,{"$f":"COUNTA(D13:W13)","v":2},{"$f":"A14","v":55},null,null,null,{"$f":"IF(Z13>AA13,AA13-Z13+IF(Z13>AA13,1),AA13-Z13)-(AB13)","v":"00:00:00"},{"$f":"IFERROR(X13/(AC13*24),0)","v":0},{"$f":"IFERROR(Y13/(AC13*24),0)","v":0},{"$f":"SUM(LEN(D14:W14))-SUM(LEN(SUBSTITUTE(SUBSTITUTE(D14:W14,\"\",\"\"),\"e\",\"\")))","v":0},null,"Remorques",258]
[{"$f":"SUM(IF(ISBLANK(D14:W14),0,SUBSTITUTE(SUBSTITUTE(SUBSTITUTE(SUBSTITUTE(D14:W14,\"b\",\"\"),\"B\",\"\"),\"e\",\"\"),\"E\",\"\")*1))","v":55},null,null,"32","23",null,null,null,null,null,null,null,null,null,null,null,null,null,null,null,null,null,null,null,null,null,null,null,null,null,null,{"$f":"SUM(LEN(D14:W14))-SUM(LEN(SUBSTITUTE(SUBSTITUTE(D14:W14,\"B\",\"\"),\"b\",\"\")))","v":0},null,"Bus",65]
[null,{"$f":"IFERROR(VLOOKUP(C15,'Liste du personnel'!B:C,2,FALSE),0)","v":"SACHA"},25,"df164",null,null,null,null,null,null,null,null,null,null,null,null,null,null,null,null,null,null,null,{"$f":"COUNTA(D15:W15)","v":1},{"$f":"A16","v":28},null,null,null,{"$f":"IF(Z15>AA15,AA15-Z15+IF(Z15>AA15,1),AA15-Z15)-(AB15)","v":"00:00:00"},{"$f":"IFERROR(X15/(AC15*24),0)","v":0},{"$f":"IFERROR(Y15/(AC15*24),0)","v":0},{"$f":"SUM(LEN(D16:W16))-SUM(LEN(SUBSTITUTE(SUBSTITUTE(D16:W16,\"\",\"\"),\"e\",\"\")))","v":0}]
[{"$f":"SUM(IF(ISBLANK(D16:W16),0,SUBSTITUTE(SUBSTITUTE(SUBSTITUTE(SUBSTITUTE(D16:W16,\"b\",\"\"),\"B\",\"\"),\"e\",\"\"),\"E\",\"\")*1))","v":28},null,null,"28",null,null,null,null,null,null,null,null,null,null,null,null,null,null,null,null,null,null,null,null,null,null,null,null,null,null,null,{"$f":"SUM(LEN(D16:W16))-SUM(LEN(SUBSTITUTE(SUBSTITUTE(D16:W16,\"B\",\"\"),\"b\",\"\")))","v":0}]
[null,{"$f":"IFERROR(VLOOKUP(C17,'Liste du personnel'!B:C,2,FALSE),0)","v":"JADE"},78,"hj147","sx752","DF456",null,null,null,null,null,null,null,null,null,null,null,null,null,null,null,null,null,{"$f":"COUNTA(D17:W17)","v":3},{"$f":"A18","v":60},null,null,null,{"$f":"IF(Z17>AA17,AA17-Z17+IF(Z17>AA17,1),AA17-Z17)-(AB17)","v":"00:00:00"},{"$f":"IFERROR(X17/(AC17*24),0)","v":0},{"$f":"IFERROR(Y17/(AC17*24),0)","v":0},{"$f":"SUM(LEN(D18:W18))-SUM(LEN(SUBSTITUTE(SUBSTITUTE(D18:W18,\"\",\"\"),\"e\",\"\")))","v":0},null,"Chargé"]
[{"$f":"SUM(IF(ISBLANK(D18:W18),0,SUBSTITUTE(SUBSTITUTE(SUBSTITUTE(SUBSTITUTE(D18:W18,\"b\",\"\"),\"B\",\"\"),\"e\",\"\"),\"E\",\"\")*1))","v":60},null,null,"23","27","10",null,null,null,null,null,null,null,null,null,null,null,null,null,null,null,null,null,null,null,null,null,null,null,null,null,{"$f":"SUM(LEN(D18:W18))-SUM(LEN(SUBSTITUTE(SUBSTITUTE(D18:W18,\"B\",\"\"),\"b\",\"\")))","v":0},null,"Remorques",{"$f":"X63-AI19-(AH28*2)","v":12}]
[null,{"$f":"IFERROR(VLOOKUP(C19,'Liste du personnel'!B:C,2,FALSE),0)","v":"CLARA"},59,"df896",null,null,null,null,null,null,null,null,null,null,null,null,null,null,null,null,null,null,null,{"$f":"COUNTA(D19:W19)","v":1},{"$f":"A20","v":27},null,null,null,{"$f":"IF(Z19>AA19,AA19-Z19+IF(Z19>AA19,1),AA19-Z19)-(AB19)","v":"00:00:00"},{"$f":"IFERROR(X19/(AC19*24),0)","v":0},{"$f":"IFERROR(Y19/(AC19*24),0)","v":0},{"$f":"SUM(LEN(D20:W20))-SUM(LEN(SUBSTITUTE(SUBSTITUTE(D20:W20,\"\",\"\"),\"e\",\"\")))","v":0},null,"Bus",{"$f":"SUM(AF14,AF16,AF18,AF20,AF22,AF24,AF26,AF28,AF30,AF32,AF34,AF36,AF38,AF40,AF42,AF44,AF46,AF48,AF50,AF52,AF54,AF56,AF58,AF60,AF62)","v":0}]
[{"$f":"SUM(IF(ISBLANK(D20:W20),0,SUBSTITUTE(SUBSTITUTE(SUBSTITUTE(SUBSTITUTE(D20:W20,\"b\",\"\"),\"B\",\"\"),\"e\",\"\"),\"E\",\"\")*1))","v":27},null,null,"27",null,null,null,null,null,null,null,null,null,null,null,null,null,null,null,null,null,null,null,null,null,null,null,null,null,null,null,{"$f":"SUM(LEN(D20:W20))-SUM(LEN(SUBSTITUTE(SUBSTITUTE(D20:W20,\"B\",\"\"),\"b\",\"\")))","v":0}]
[null,{"$f":"IFERROR(VLOOKUP(C21,'Liste du personnel'!B:C,2,FALSE),0)","v":"NOEL"},45,"fg478",null,null,null,null,null,null,null,null,null,null,null,null,null,null,null,null,null,null,null,{"$f":"COUNTA(D21:W21)","v":1},{"$f":"A22","v":21},null,null,null,{"$f":"IF(Z21>AA21,AA21-Z21+IF(Z21>AA21,1),AA21-Z21)-(AB21)","v":"00:00:00"},{"$f":"IFERROR(X21/(AC21*24),0)","v":0},{"$f":"IFERROR(Y21/(AC21*24),0)","v":0},{"$f":"SUM(LEN(D22:W22))-SUM(LEN(SUBSTITUTE(SUBSTITUTE(D22:W22,\"\",\"\"),\"e\",\"\")))","v":0}]
[{"$f":"SUM(IF(ISBLANK(D22:W22),0,SUBSTITUTE(SUBSTITUTE(SUBSTITUTE(SUBSTITUTE(D22:W22,\"b\",\"\"),\"B\",\"\"),\"e\",\"\"),\"E\",\"\")*1))","v":21},null,null,"21",null,null,null,null,null,null,null,null,null,null,null,null,null,null,null,null,null,null,null,null,null,null,null,null,null,null,null,{"$f":"SUM(LEN(D22:W22))-SUM(LEN(SUBSTITUTE(SUBSTITUTE(D22:W22,\"B\",\"\"),\"b\",\"\")))","v":0},null,"Reste"]
[null,{"$f":"IFERROR(VLOOKUP(C23,'Liste du personnel'!B:C,2,FALSE),0)","v":"DOMITILLE"},89,"df214",null,null,null,null,null,null,null,null,null,null,null,null,null,null,null,null,null,null,null,{"$f":"COUNTA(D23:W23)","v":1},{"$f":"A24","v":31},null,null,null,{"$f":"IF(Z23>AA23,AA23-Z23+IF(Z23>AA23,1),AA23-Z23)-(AB23)","v":"00:00:00"},{"$f":"IFERROR(X23/(AC23*24),0)","v":0},{"$f":"IFERROR(Y23/(AC23*24),0)","v":0},{"$f":"SUM(LEN(D24:W24))-SUM(LEN(SUBSTITUTE(SUBSTITUTE(D24:W24,\"\",\"\"),\"e\",\"\")))","v":0},null,"Remorques",{"$f":"AI13-AI18","v":246}]
[{"$f":"SUM(IF(ISBLANK(D24:W24),0,SUBSTITUTE(SUBSTITUTE(SUBSTITUTE(SUBSTITUTE(D24:W24,\"b\",\"\"),\"B\",\"\"),\"e\",\"\"),\"E\",\"\")*1))","v":31},null,null,"31",null,null,null,null,null,null,null,null,null,null,null,null,null,null,null,null,null,null,null,null,null,null,null,null,null,null,null,{"$f":"SUM(LEN(D24:W24))-SUM(LEN(SUBSTITUTE(SUBSTITUTE(D24:W24,\"B\",\"\"),\"b\",\"\")))","v":0},null,"Bus",{"$f":"AI14-AI19","v":65}]
[null,{"$f":"IFERROR(VLOOKUP(C25,'Liste du personnel'!B:C,2,FALSE),0)","v":"LINA"},72,"sx124",null,null,null,null,null,null,null,null,null,null,null,null,null,null,null,null,null,null,null,{"$f":"COUNTA(D25:W25)","v":1},{"$f":"A26","v":32},null,null,null,{"$f":"IF(Z25>AA25,AA25-Z25+IF(Z25>AA25,1),AA25-Z25)-(AB25)","v":"00:00:00"},{"$f":"IFERROR(X25/(AC25*24),0)","v":0},{"$f":"IFERROR(Y25/(AC25*24),0)","v":0},{"$f":"SUM(LEN(D26:W26))-SUM(LEN(SUBSTITUTE(SUBSTITUTE(D26:W26,\"\",\"\"),\"e\",\"\")))","v":0}]
[{"$f":"SUM(IF(ISBLANK(D26:W26),0,SUBSTITUTE(SUBSTITUTE(SUBSTITUTE(SUBSTITUTE(D26:W26,\"b\",\"\"),\"B\",\"\"),\"e\",\"\"),\"E\",\"\")*1))","v":32},null,null,"32",null,null,null,null,null,null,null,null,null,null,null,null,null,null,null,null,null,null,null,null,null,null,null,null,null,null,null,{"$f":"SUM(LEN(D26:W26))-SUM(LEN(SUBSTITUTE(SUBSTITUTE(D26:W26,\"B\",\"\"),\"b\",\"\")))","v":0}]
[null,{"$f":"IFERROR(VLOOKUP(C27,'Liste du personnel'!B:C,2,FALSE),0)","v":"ANTHONY"},26,"QF589","QS247",null,null,null,null,null,null,null,null,null,null,null,null,null,null,null,null,null,null,{"$f":"COUNTA(D27:W27)","v":2},{"$f":"A28","v":49},null,null,null,{"$f":"IF(Z27>AA27,AA27-Z27+IF(Z27>AA27,1),AA27-Z27)-(AB27)","v":"00:00:00"},{"$f":"IFERROR(X27/(AC27*24),0)","v":0},{"$f":"IFERROR(Y27/(AC27*24),0)","v":0},{"$f":"SUM(LEN(D28:W28))-SUM(LEN(SUBSTITUTE(SUBSTITUTE(D28:W28,\"\",\"\"),\"e\",\"\")))","v":0},null,"Rechargées "]
[{"$f":"SUM(IF(ISBLANK(D28:W28),0,SUBSTITUTE(SUBSTITUTE(SUBSTITUTE(SUBSTITUTE(D28:W28,\"b\",\"\"),\"B\",\"\"),\"e\",\"\"),\"E\",\"\")*1))","v":49},null,null,"28","21",null,null,null,null,null,null,null,null,null,null,null,null,null,null,null,null,null,null,null,null,null,null,null,null,null,null,{"$f":"SUM(LEN(D28:W28))-SUM(LEN(SUBSTITUTE(SUBSTITUTE(D28:W28,\"B\",\"\"),\"b\",\"\")))","v":0},null,{"$f":"SUM(AF13,AF15,AF17,AF19,AF21,AF23,AF25,AF27,AF29,AF31,AF33,AF35,AF37,AF39,AF41,AF43,AF45,AF47,AF49,AF51,AF53,AF55,AF57,AF59,AF61)","v":0}]
[null,{"$f":"IFERROR(VLOOKUP(C29,'Liste du personnel'!B:C,2,FALSE),0)","v":0},null,null,null,null,null,null,null,null,null,null,null,null,null,null,null,null,null,null,null,null,null,{"$f":"COUNTA(D29:W29)","v":0},{"$f":"A30","v":0},null,null,null,{"$f":"IF(Z29>AA29,AA29-Z29+IF(Z29>AA29,1),AA29-Z29)-(AB29)","v":"00:00:00"},{"$f":"IFERROR(X29/(AC29*24),0)","v":0},{"$f":"IFERROR(Y29/(AC29*24),0)","v":0},{"$f":"SUM(LEN(D30:W30))-SUM(LEN(SUBSTITUTE(SUBSTITUTE(D30:W30,\"\",\"\"),\"e\",\"\")))","v":0}]
[{"$f":"SUM(IF(ISBLANK(D30:W30),0,SUBSTITUTE(SUBSTITUTE(SUBSTITUTE(SUBSTITUTE(D30:W30,\"b\",\"\"),\"B\",\"\"),\"e\",\"\"),\"E\",\"\")*1))","v":0},null,null,null,null,null,null,null,null,null,null,null,null,null,null,null,null,null,null,null,null,null,null,null,null,null,null,null,null,null,null,{"$f":"SUM(LEN(D30:W30))-SUM(LEN(SUBSTITUTE(SUBSTITUTE(D30:W30,\"B\",\"\"),\"b\",\"\")))","v":0}]
[null,{"$f":"IFERROR(VLOOKUP(C31,'Liste du personnel'!B:C,2,FALSE),0)","v":0},null,null,null,null,null,null,null,null,null,null,null,null,null,null,null,null,null,null,null,null,null,{"$f":"COUNTA(D31:W31)","v":0},{"$f":"A32","v":0},null,null,null,{"$f":"IF(Z31>AA31,AA31-Z31+IF(Z31>AA31,1),AA31-Z31)-(AB31)","v":"00:00:00"},{"$f":"IFERROR(X31/(AC31*24),0)","v":0},{"$f":"IFERROR(Y31/(AC31*24),0)","v":0},{"$f":"SUM(LEN(D32:W32))-SUM(LEN(SUBSTITUTE(SUBSTITUTE(D32:W32,\"\",\"\"),\"e\",\"\")))","v":0}]
[{"$f":"SUM(IF(ISBLANK(D32:W32),0,SUBSTITUTE(SUBSTITUTE(SUBSTITUTE(SUBSTITUTE(D32:W32,\"b\",\"\"),\"B\",\"\"),\"e\",\"\"),\"E\",\"\")*1))","v":0},null,null,null,null,null,null,null,null,null,null,null,null,null,null,null,null,null,null,null,null,null,null,null,null,null,null,null,null,null,null,{"$f":"SUM(LEN(D32:W32))-SUM(LEN(SUBSTITUTE(SUBSTITUTE(D32:W32,\"B\",\"\"),\"b\",\"\")))","v":0},"Commentaires"]
[null,{"$f":"IFERROR(VLOOKUP(C33,'Liste du personnel'!B:C,2,FALSE),0)","v":0},null,null,null,null,null,null,null,null,null,null,null,null,null,null,null,null,null,null,null,null,null,{"$f":"COUNTA(D33:W33)","v":0},{"$f":"A34","v":0},null,null,null,{"$f":"IF(Z33>AA33,AA33-Z33+IF(Z33>AA33,1),AA33-Z33)-(AB33)","v":"00:00:00"},{"$f":"IFERROR(X33/(AC33*24),0)","v":0},{"$f":"IFERROR(Y33/(AC33*24),0)","v":0},{"$f":"SUM(LEN(D34:W34))-SUM(LEN(SUBSTITUTE(SUBSTITUTE(D34:W34,\"\",\"\"),\"e\",\"\")))","v":0}]
[{"$f":"SUM(IF(ISBLANK(D34:W34),0,SUBSTITUTE(SUBSTITUTE(SUBSTITUTE(SUBSTITUTE(D34:W34,\"b\",\"\"),\"B\",\"\"),\"e\",\"\"),\"E\",\"\")*1))","v":0},null,null,null,null,null,null,null,null,null,null,null,null,null,null,null,null,null,null,null,null,null,null,null,null,null,null,null,null,null,null,{"$f":"SUM(LEN(D34:W34))-SUM(LEN(SUBSTITUTE(SUBSTITUTE(D34:W34,\"B\",\"\"),\"b\",\"\")))","v":0}]
[null,{"$f":"IFERROR(VLOOKUP(C35,'Liste du personnel'!B:C,2,FALSE),0)","v":0},null,null,null,null,null,null,null,null,null,null,null,null,null,null,null,null,null,null,null,null,null,{"$f":"COUNTA(D35:W35)","v":0},{"$f":"A36","v":0},null,null,null,{"$f":"IF(Z35>AA35,AA35-Z35+IF(Z35>AA35,1),AA35-Z35)-(AB35)","v":"00:00:00"},{"$f":"IFERROR(X35/(AC35*24),0)","v":0},{"$f":"IFERROR(Y35/(AC35*24),0)","v":0},{"$f":"SUM(LEN(D36:W36))-SUM(LEN(SUBSTITUTE(SUBSTITUTE(D36:W36,\"\",\"\"),\"e\",\"\")))","v":0}]
[{"$f":"SUM(IF(ISBLANK(D36:W36),0,SUBSTITUTE(SUBSTITUTE(SUBSTITUTE(SUBSTITUTE(D36:W36,\"b\",\"\"),\"B\",\"\"),\"e\",\"\"),\"E\",\"\")*1))","v":0},null,null,null,null,null,null,null,null,null,null,null,null,null,null,null,null,null,null,null,null,null,null,null,null,null,null,null,null,null,null,{"$f":"SUM(LEN(D36:W36))-SUM(LEN(SUBSTITUTE(SUBSTITUTE(D36:W36,\"B\",\"\"),\"b\",\"\")))","v":0}]
[null,{"$f":"IFERROR(VLOOKUP(C37,'Liste du personnel'!B:C,2,FALSE),0)","v":0},null,null,null,null,null,null,null,null,null,null,null,null,null,null,null,null,null,null,null,null,null,{"$f":"COUNTA(D37:W37)","v":0},{"$f":"A38","v":0},null,null,null,{"$f":"IF(Z37>AA37,AA37-Z37+IF(Z37>AA37,1),AA37-Z37)-(AB37)","v":"00:00:00"},{"$f":"IFERROR(X37/(AC37*24),0)","v":0},{"$f":"IFERROR(Y37/(AC37*24),0)","v":0},{"$f":"SUM(LEN(D38:W38))-SUM(LEN(SUBSTITUTE(SUBSTITUTE(D38:W38,\"\",\"\"),\"e\",\"\")))","v":0}]
[{"$f":"SUM(IF(ISBLANK(D38:W38),0,SUBSTITUTE(SUBSTITUTE(SUBSTITUTE(SUBSTITUTE(D38:W38,\"b\",\"\"),\"B\",\"\"),\"e\",\"\"),\"E\",\"\")*1))","v":0},null,null,null,null,null,null,null,null,null,null,null,null,null,null,null,null,null,null,null,null,null,null,null,null,null,null,null,null,null,null,{"$f":"SUM(LEN(D38:W38))-SUM(LEN(SUBSTITUTE(SUBSTITUTE(D38:W38,\"B\",\"\"),\"b\",\"\")))","v":0}]
[null,{"$f":"IFERROR(VLOOKUP(C39,'Liste du personnel'!B:C,2,FALSE),0)","v":0},null,null,null,null,null,null,null,null,null,null,null,null,null,null,null,null,null,null,null,null,null,{"$f":"COUNTA(D39:W39)","v":0},{"$f":"A40","v":0},null,null,null,{"$f":"IF(Z39>AA39,AA39-Z39+IF(Z39>AA39,1),AA39-Z39)-(AB39)","v":"00:00:00"},{"$f":"IFERROR(X39/(AC39*24),0)","v":0},{"$f":"IFERROR(Y39/(AC39*24),0)","v":0},{"$f":"SUM(LEN(D40:W40))-SUM(LEN(SUBSTITUTE(SUBSTITUTE(D40:W40,\"\",\"\"),\"e\",\"\")))","v":0}]
[{"$f":"SUM(IF(ISBLANK(D40:W40),0,SUBSTITUTE(SUBSTITUTE(SUBSTITUTE(SUBSTITUTE(D40:W40,\"b\",\"\"),\"B\",\"\"),\"e\",\"\"),\"E\",\"\")*1))","v":0},null,null,null,null,null,null,null,null,null,null,null,null,null,null,null,null,null,null,null,null,null,null,null,null,null,null,null,null,null,null,{"$f":"SUM(LEN(D40:W40))-SUM(LEN(SUBSTITUTE(SUBSTITUTE(D40:W40,\"B\",\"\"),\"b\",\"\")))","v":0}]
[null,{"$f":"IFERROR(VLOOKUP(C41,'Liste du personnel'!B:C,2,FALSE),0)","v":0},null,null,null,null,null,null,null,null,null,null,null,null,null,null,null,null,null,null,null,null,null,{"$f":"COUNTA(D41:W41)","v":0},{"$f":"A42","v":0},null,null,null,{"$f":"IF(Z41>AA41,AA41-Z41+IF(Z41>AA41,1),AA41-Z41)-(AB41)","v":"00:00:00"},{"$f":"IFERROR(X41/(AC41*24),0)","v":0},{"$f":"IFERROR(Y41/(AC41*24),0)","v":0},{"$f":"SUM(LEN(D42:W42))-SUM(LEN(SUBSTITUTE(SUBSTITUTE(D42:W42,\"\",\"\"),\"e\",\"\")))","v":0}]
[{"$f":"SUM(IF(ISBLANK(D42:W42),0,SUBSTITUTE(SUBSTITUTE(SUBSTITUTE(SUBSTITUTE(D42:W42,\"b\",\"\"),\"B\",\"\"),\"e\",\"\"),\"E\",\"\")*1))","v":0},null,null,null,null,null,null,null,null,null,null,null,null,null,null,null,null,null,null,null,null,null,null,null,null,null,null,null,null,null,null,{"$f":"SUM(LEN(D42:W42))-SUM(LEN(SUBSTITUTE(SUBSTITUTE(D42:W42,\"B\",\"\"),\"b\",\"\")))","v":0}]
[null,{"$f":"IFERROR(VLOOKUP(C43,'Liste du personnel'!B:C,2,FALSE),0)","v":0},null,null,null,null,null,null,null,null,null,null,null,null,null,null,null,null,null,null,null,null,null,{"$f":"COUNTA(D43:W43)","v":0},{"$f":"A44","v":0},null,null,null,{"$f":"IF(Z43>AA43,AA43-Z43+IF(Z43>AA43,1),AA43-Z43)-(AB43)","v":"00:00:00"},{"$f":"IFERROR(X43/(AC43*24),0)","v":0},{"$f":"IFERROR(Y43/(AC43*24),0)","v":0},{"$f":"SUM(LEN(D44:W44))-SUM(LEN(SUBSTITUTE(SUBSTITUTE(D44:W44,\"\",\"\"),\"e\",\"\")))","v":0}]
[{"$f":"SUM(IF(ISBLANK(D44:W44),0,SUBSTITUTE(SUBSTITUTE(SUBSTITUTE(SUBSTITUTE(D44:W44,\"b\",\"\"),\"B\",\"\"),\"e\",\"\"),\"E\",\"\")*1))","v":0},null,null,null,null,null,null,null,null,null,null,null,null,null,null,null,null,null,null,null,null,null,null,null,null,null,null,null,null,null,null,{"$f":"SUM(LEN(D44:W44))-SUM(LEN(SUBSTITUTE(SUBSTITUTE(D44:W44,\"B\",\"\"),\"b\",\"\")))","v":0}]
[null,{"$f":"IFERROR(VLOOKUP(C45,'Liste du personnel'!B:C,2,FALSE),0)","v":0},null,null,null,null,null,null,null,null,null,null,null,null,null,null,null,null,null,null,null,null,null,{"$f":"COUNTA(D45:W45)","v":0},{"$f":"A46","v":0},null,null,null,{"$f":"IF(Z45>AA45,AA45-Z45+IF(Z45>AA45,1),AA45-Z45)-(AB45)","v":"00:00:00"},{"$f":"IFERROR(X45/(AC45*24),0)","v":0},{"$f":"IFERROR(Y45/(AC45*24),0)","v":0},{"$f":"SUM(LEN(D46:W46))-SUM(LEN(SUBSTITUTE(SUBSTITUTE(D46:W46,\"\",\"\"),\"e\",\"\")))","v":0}]
[{"$f":"SUM(IF(ISBLANK(D46:W46),0,SUBSTITUTE(SUBSTITUTE(SUBSTITUTE(SUBSTITUTE(D46:W46,\"b\",\"\"),\"B\",\"\"),\"e\",\"\"),\"E\",\"\")*1))","v":0},null,null,null,null,null,null,null,null,null,null,null,null,null,null,null,null,null,null,null,null,null,null,null,null,null,null,null,null,null,null,{"$f":"SUM(LEN(D46:W46))-SUM(LEN(SUBSTITUTE(SUBSTITUTE(D46:W46,\"B\",\"\"),\"b\",\"\")))","v":0}]
[null,{"$f":"IFERROR(VLOOKUP(C47,'Liste du personnel'!B:C,2,FALSE),0)","v":0},null,null,null,null,null,null,null,null,null,null,null,null,null,null,null,null,null,null,null,null,null,{"$f":"COUNTA(D47:W47)","v":0},{"$f":"A48","v":0},null,null,null,{"$f":"IF(Z47>AA47,AA47-Z47+IF(Z47>AA47,1),AA47-Z47)-(AB47)","v":"00:00:00"},{"$f":"IFERROR(X47/(AC47*24),0)","v":0},{"$f":"IFERROR(Y47/(AC47*24),0)","v":0},{"$f":"SUM(LEN(D48:W48))-SUM(LEN(SUBSTITUTE(SUBSTITUTE(D48:W48,\"\",\"\"),\"e\",\"\")))","v":0}]
[{"$f":"SUM(IF(ISBLANK(D48:W48),0,SUBSTITUTE(SUBSTITUTE(SUBSTITUTE(SUBSTITUTE(D48:W48,\"b\",\"\"),\"B\",\"\"),\"e\",\"\"),\"E\",\"\")*1))","v":0},null,null,null,null,null,null,null,null,null,null,null,null,null,null,null,null,null,null,null,null,null,null,null,null,null,null,null,null,null,null,{"$f":"SUM(LEN(D48:W48))-SUM(LEN(SUBSTITUTE(SUBSTITUTE(D48:W48,\"B\",\"\"),\"b\",\"\")))","v":0}]
[null,{"$f":"IFERROR(VLOOKUP(C49,'Liste du personnel'!B:C,2,FALSE),0)","v":0},null,null,null,null,null,null,null,null,null,null,null,null,null,null,null,null,null,null,null,null,null,{"$f":"COUNTA(D49:W50)","v":0},{"$f":"A50","v":0},null,null,null,{"$f":"IF(Z49>AA49,AA49-Z49+IF(Z49>AA49,1),AA49-Z49)-(AB49)","v":"00:00:00"},{"$f":"IFERROR(X49/(AC49*24),0)","v":0},{"$f":"IFERROR(Y49/(AC49*24),0)","v":0},{"$f":"SUM(LEN(D50:W50))-SUM(LEN(SUBSTITUTE(SUBSTITUTE(D50:W50,\"\",\"\"),\"e\",\"\")))","v":0}]
[{"$f":"SUM(IF(ISBLANK(D50:W50),0,SUBSTITUTE(SUBSTITUTE(SUBSTITUTE(SUBSTITUTE(D50:W50,\"b\",\"\"),\"B\",\"\"),\"e\",\"\"),\"E\",\"\")*1))","v":0},null,null,null,null,null,null,null,null,null,null,null,null,null,null,null,null,null,null,null,null,null,null,null,null,null,null,null,null,null,null,{"$f":"SUM(LEN(D50:W50))-SUM(LEN(SUBSTITUTE(SUBSTITUTE(D50:W50,\"B\",\"\"),\"b\",\"\")))","v":0}]
[null,{"$f":"IFERROR(VLOOKUP(C51,'Liste du personnel'!B:C,2,FALSE),0)","v":0},null,null,null,null,null,null,null,null,null,null,null,null,null,null,null,null,null,null,null,null,null,{"$f":"COUNTA(D51:W52)","v":0},{"$f":"A52","v":0},null,null,null,{"$f":"IF(Z51>AA51,AA51-Z51+IF(Z51>AA51,1),AA51-Z51)-(AB51)","v":"00:00:00"},{"$f":"IFERROR(X51/(AC51*24),0)","v":0},{"$f":"IFERROR(Y51/(AC51*24),0)","v":0},{"$f":"SUM(LEN(D52:W52))-SUM(LEN(SUBSTITUTE(SUBSTITUTE(D52:W52,\"\",\"\"),\"e\",\"\")))","v":0}]
[{"$f":"SUM(IF(ISBLANK(D52:W52),0,SUBSTITUTE(SUBSTITUTE(SUBSTITUTE(SUBSTITUTE(D52:W52,\"b\",\"\"),\"B\",\"\"),\"e\",\"\"),\"E\",\"\")*1))","v":0},null,null,null,null,null,null,null,null,null,null,null,null,null,null,null,null,null,null,null,null,null,null,null,null,null,null,null,null,null,null,{"$f":"SUM(LEN(D52:W52))-SUM(LEN(SUBSTITUTE(SUBSTITUTE(D52:W52,\"B\",\"\"),\"b\",\"\")))","v":0}]
[null,{"$f":"IFERROR(VLOOKUP(C53,'Liste du personnel'!B:C,2,FALSE),0)","v":0},null,null,null,null,null,null,null,null,null,null,null,null,null,null,null,null,null,null,null,null,null,{"$f":"COUNTA(D53:W54)","v":0},{"$f":"A54","v":0},null,null,null,{"$f":"IF(Z53>AA53,AA53-Z53+IF(Z53>AA53,1),AA53-Z53)-(AB53)","v":"00:00:00"},{"$f":"IFERROR(X53/(AC53*24),0)","v":0},{"$f":"IFERROR(Y53/(AC53*24),0)","v":0},{"$f":"SUM(LEN(D54:W54))-SUM(LEN(SUBSTITUTE(SUBSTITUTE(D54:W54,\"\",\"\"),\"e\",\"\")))","v":0}]
[{"$f":"SUM(IF(ISBLANK(D54:W54),0,SUBSTITUTE(SUBSTITUTE(SUBSTITUTE(SUBSTITUTE(D54:W54,\"b\",\"\"),\"B\",\"\"),\"e\",\"\"),\"E\",\"\")*1))","v":0},null,null,null,null,null,null,null,null,null,null,null,null,null,null,null,null,null,null,null,null,null,null,null,null,null,null,null,null,null,null,{"$f":"SUM(LEN(D54:W54))-SUM(LEN(SUBSTITUTE(SUBSTITUTE(D54:W54,\"B\",\"\"),\"b\",\"\")))","v":0}]
[null,{"$f":"IFERROR(VLOOKUP(C55,'Liste du personnel'!B:C,2,FALSE),0)","v":0},null,null,null,null,null,null,null,null,null,null,null,null,null,null,null,null,null,null,null,null,null,{"$f":"COUNTA(D55:W56)","v":0},{"$f":"A56","v":0},null,null,null,{"$f":"IF(Z55>AA55,AA55-Z55+IF(Z55>AA55,1),AA55-Z55)-(AB55)","v":"00:00:00"},{"$f":"IFERROR(X55/(AC55*24),0)","v":0},{"$f":"IFERROR(Y55/(AC55*24),0)","v":0},{"$f":"SUM(LEN(D56:W56))-SUM(LEN(SUBSTITUTE(SUBSTITUTE(D56:W56,\"\",\"\"),\"e\",\"\")))","v":0}]
[{"$f":"SUM(IF(ISBLANK(D56:W56),0,SUBSTITUTE(SUBSTITUTE(SUBSTITUTE(SUBSTITUTE(D56:W56,\"b\",\"\"),\"B\",\"\"),\"e\",\"\"),\"E\",\"\")*1))","v":0},null,null,null,null,null,null,null,null,null,null,null,null,null,null,null,null,null,null,null,null,null,null,null,null,null,null,null,null,null,null,{"$f":"SUM(LEN(D56:W56))-SUM(LEN(SUBSTITUTE(SUBSTITUTE(D56:W56,\"B\",\"\"),\"b\",\"\")))","v":0}]
[null,{"$f":"IFERROR(VLOOKUP(C57,'Liste du personnel'!B:C,2,FALSE),0)","v":0},null,null,null,null,null,null,null,null,null,null,null,null,null,null,null,null,null,null,null,null,null,{"$f":"COUNTA(D57:W58)","v":0},{"$f":"A58","v":0},null,null,null,{"$f":"IF(Z57>AA57,AA57-Z57+IF(Z57>AA57,1),AA57-Z57)-(AB57)","v":"00:00:00"},{"$f":"IFERROR(X57/(AC57*24),0)","v":0},{"$f":"IFERROR(Y57/(AC57*24),0)","v":0},{"$f":"SUM(LEN(D58:W58))-SUM(LEN(SUBSTITUTE(SUBSTITUTE(D58:W58,\"\",\"\"),\"e\",\"\")))","v":0}]
[{"$f":"SUM(IF(ISBLANK(D58:W58),0,SUBSTITUTE(SUBSTITUTE(SUBSTITUTE(SUBSTITUTE(D58:W58,\"b\",\"\"),\"B\",\"\"),\"e\",\"\"),\"E\",\"\")*1))","v":0},null,null,null,null,null,null,null,null,null,null,null,null,null,null,null,null,null,null,null,null,null,null,null,null,null,null,null,null,null,null,{"$f":"SUM(LEN(D58:W58))-SUM(LEN(SUBSTITUTE(SUBSTITUTE(D58:W58,\"B\",\"\"),\"b\",\"\")))","v":0}]
[null,{"$f":"IFERROR(VLOOKUP(C59,'Liste du personnel'!B:C,2,FALSE),0)","v":0},null,null,null,null,null,null,null,null,null,null,null,null,null,null,null,null,null,null,null,null,null,{"$f":"COUNTA(D59:W60)","v":0},{"$f":"A60","v":0},null,null,null,{"$f":"IF(Z59>AA59,AA59-Z59+IF(Z59>AA59,1),AA59-Z59)-(AB59)","v":"00:00:00"},{"$f":"IFERROR(X59/(AC59*24),0)","v":0},{"$f":"IFERROR(Y59/(AC59*24),0)","v":0},{"$f":"SUM(LEN(D60:W60))-SUM(LEN(SUBSTITUTE(SUBSTITUTE(D60:W60,\"\",\"\"),\"e\",\"\")))","v":0}]
[{"$f":"SUM(IF(ISBLANK(D60:W60),0,SUBSTITUTE(SUBSTITUTE(SUBSTITUTE(SUBSTITUTE(D60:W60,\"b\",\"\"),\"B\",\"\"),\"e\",\"\"),\"E\",\"\")*1))","v":0},null,null,null,null,null,null,null,null,null,null,null,null,null,null,null,null,null,null,null,null,null,null,null,null,null,null,null,null,null,null,{"$f":"SUM(LEN(D60:W60))-SUM(LEN(SUBSTITUTE(SUBSTITUTE(D60:W60,\"B\",\"\"),\"b\",\"\")))","v":0}]
[null,{"$f":"IFERROR(VLOOKUP(C61,'Liste du personnel'!B:C,2,FALSE),0)","v":0},null,null,null,null,null,null,null,null,null,null,null,null,null,null,null,null,null,null,null,null,null,{"$f":"COUNTA(D61:W62)","v":0},{"$f":"A62","v":0},null,null,null,{"$f":"IF(Z61>AA61,AA61-Z61+IF(Z61>AA61,1),AA61-Z61)-(AB61)","v":"00:00:00"},{"$f":"IFERROR(X61/(AC61*24),0)","v":0},{"$f":"IFERROR(Y61/(AC61*24),0)","v":0},{"$f":"SUM(LEN(D62:W62))-SUM(LEN(SUBSTITUTE(SUBSTITUTE(D62:W62,\"\",\"\"),\"e\",\"\")))","v":0}]
[{"$f":"SUM(IF(ISBLANK(D62:W62),0,SUBSTITUTE(SUBSTITUTE(SUBSTITUTE(SUBSTITUTE(D62:W62,\"b\",\"\"),\"B\",\"\"),\"e\",\"\"),\"E\",\"\")*1))","v":0},null,null,null,null,null,null,null,null,null,null,null,null,null,null,null,null,null,null,null,null,null,null,null,null,null,null,null,null,null,null,{"$f":"SUM(LEN(D62:W62))-SUM(LEN(SUBSTITUTE(SUBSTITUTE(D62:W62,\"B\",\"\"),\"b\",\"\")))","v":0}]
[null,null,null,null,null,null,null,null,null,null,null,null,null,null,null,null,null,null,"Totaux :",null,null,null,null,{"$f":"SUM(X13:X62)","v":12},{"$f":"SUM(Y13:Y62)","v":303},null,null,null,{"$f":"SUMIF(AC13:AC62,\">0\")","v":0},{"$f":"IFERROR(X63/(AC63*24),0)","v":0},{"$f":"IFERROR(Y63/(AC63*24),0)","v":0}]

{"sheet":"Données","index":1,"n_rows":360,"n_cols":7,"rows_kept":360,"cut":false,"hidden":false,"merged":[]}
[]
[null,"N° de course","Date","Heure","N° Pers.","Noms","Nbre de pièces"]
[null,"df456","2018-02-15T16:50:24",43146.701666666668,56,{"$f":"IFERROR(VLOOKUP(E3,'Liste du personnel'!B:C,2,0),\"\")","v":"YSEE"},32]
[null,"df164","2018-02-15T16:51:20",43146.702314814815,25,{"$f":"IFERROR(VLOOKUP(E4,'Liste du personnel'!B:C,2,0),\"\")","v":"SACHA"},28]
[null,"df863","2018-02-15T17:45:02",43146.739606481482,56,{"$f":"IFERROR(VLOOKUP(E5,'Liste du personnel'!B:C,2,0),\"\")","v":"YSEE"},23]
[null,"hj147","2018-02-15T17:47:18",43146.741180555553,78,{"$f":"IFERROR(VLOOKUP(E6,'Liste du personnel'!B:C,2,0),\"\")","v":"JADE"},23]
[null,"df896","2018-02-15T19:50:38",43146.826828703706,59,{"$f":"IFERROR(VLOOKUP(E7,'Liste du personnel'!B:C,2,0),\"\")","v":"CLARA"},27]
[null,"SX789","2018-02-15T20:20:06",43146.847291666665,78,{"$f":"IFERROR(VLOOKUP(E8,'Liste du personnel'!B:C,2,0),\"\")","v":"JADE"},29]
[null,"sx752","2018-02-15T20:21:01",43146.847928240742,78,{"$f":"IFERROR(VLOOKUP(E9,'Liste du personnel'!B:C,2,0),\"\")","v":"JADE"},27]
[null,"df214","2018-02-15T20:22:25",43146.848900462966,89,{"$f":"IFERROR(VLOOKUP(E10,'Liste du personnel'!B:C,2,0),\"\")","v":"DOMITILLE"},31]
[null,"sx124","2018-02-15T20:26:04",43146.851435185185,72,{"$f":"IFERROR(VLOOKUP(E11,'Liste du personnel'!B:C,2,0),\"\")","v":"LINA"},32]
[null,"QF589","2018-02-15T20:35:21",43146.857881944445,26,{"$f":"IFERROR(VLOOKUP(E12,'Liste du personnel'!B:C,2,0),\"\")","v":"ANTHONY"},28]
[null,"RE842","2018-02-15T20:35:41",43146.858113425929,78,{"$f":"IFERROR(VLOOKUP(E13,'Liste du personnel'!B:C,2,0),\"\")","v":"JADE"},38]
[null,"DF456","2018-02-15T20:41:18",43146.862013888887,78,{"$f":"IFERROR(VLOOKUP(E14,'Liste du personnel'!B:C,2,0),\"\")","v":"JADE"},10]
[null,"GH789","2018-02-15T20:50:49",43146.868622685186,26,{"$f":"IFERROR(VLOOKUP(E15,'Liste du personnel'!B:C,2,0),\"\")","v":"ANTHONY"},21]
[null,"QS247","2018-02-15T20:51:50",43146.869328703702,26,{"$f":"IFERROR(VLOOKUP(E16,'Liste du personnel'!B:C,2,0),\"\")","v":"ANTHONY"},21]
[null,null,null,null,null,{"$f":"IFERROR(VLOOKUP(E17,'Liste du personnel'!B:C,2,0),\"\")","v":""}]
[null,null,null,null,null,{"$f":"IFERROR(VLOOKUP(E18,'Liste du personnel'!B:C,2,0),\"\")","v":""}]
[null,null,null,null,null,{"$f":"IFERROR(VLOOKUP(E19,'Liste du personnel'!B:C,2,0),\"\")","v":""}]
[null,null,null,null,null,{"$f":"IFERROR(VLOOKUP(E20,'Liste du personnel'!B:C,2,0),\"\")","v":""}]
[null,null,null,null,null,{"$f":"IFERROR(VLOOKUP(E21,'Liste du personnel'!B:C,2,0),\"\")","v":""}]
[null,null,null,null,null,{"$f":"IFERROR(VLOOKUP(E22,'Liste du personnel'!B:C,2,0),\"\")","v":""}]
[null,null,null,null,null,{"$f":"IFERROR(VLOOKUP(E23,'Liste du personnel'!B:C,2,0),\"\")","v":""}]
[null,null,null,null,null,{"$f":"IFERROR(VLOOKUP(E24,'Liste du personnel'!B:C,2,0),\"\")","v":""}]
[null,null,null,null,null,{"$f":"IFERROR(VLOOKUP(E25,'Liste du personnel'!B:C,2,0),\"\")","v":""}]
[null,null,null,null,null,{"$f":"IFERROR(VLOOKUP(E26,'Liste du personnel'!B:C,2,0),\"\")","v":""}]
[null,null,null,null,null,{"$f":"IFERROR(VLOOKUP(E27,'Liste du personnel'!B:C,2,0),\"\")","v":""}]
[null,null,null,null,null,{"$f":"IFERROR(VLOOKUP(E28,'Liste du personnel'!B:C,2,0),\"\")","v":""}]
[null,null,null,null,null,{"$f":"IFERROR(VLOOKUP(E29,'Liste du personnel'!B:C,2,0),\"\")","v":""}]
[null,null,null,null,null,{"$f":"IFERROR(VLOOKUP(E30,'Liste du personnel'!B:C,2,0),\"\")","v":""}]
[null,null,null,null,null,{"$f":"IFERROR(VLOOKUP(E31,'Liste du personnel'!B:C,2,0),\"\")","v":""}]
[null,null,null,null,null,{"$f":"IFERROR(VLOOKUP(E32,'Liste du personnel'!B:C,2,0),\"\")","v":""}]
[null,null,null,null,null,{"$f":"IFERROR(VLOOKUP(E33,'Liste du personnel'!B:C,2,0),\"\")","v":""}]
[null,null,null,null,null,{"$f":"IFERROR(VLOOKUP(E34,'Liste du personnel'!B:C,2,0),\"\")","v":""}]
[null,null,null,null,null,{"$f":"IFERROR(VLOOKUP(E35,'Liste du personnel'!B:C,2,0),\"\")","v":""}]
[null,null,null,null,null,{"$f":"IFERROR(VLOOKUP(E36,'Liste du personnel'!B:C,2,0),\"\")","v":""}]
[null,null,null,null,null,{"$f":"IFERROR(VLOOKUP(E37,'Liste du personnel'!B:C,2,0),\"\")","v":""}]
[null,null,null,null,null,{"$f":"IFERROR(VLOOKUP(E38,'Liste du personnel'!B:C,2,0),\"\")","v":""}]
[null,null,null,null,null,{"$f":"IFERROR(VLOOKUP(E39,'Liste du personnel'!B:C,2,0),\"\")","v":""}]
[null,null,null,null,null,{"$f":"IFERROR(VLOOKUP(E40,'Liste du personnel'!B:C,2,0),\"\")","v":""}]
[null,null,null,null,null,{"$f":"IFERROR(VLOOKUP(E41,'Liste du personnel'!B:C,2,0),\"\")","v":""}]
[null,null,null,null,null,{"$f":"IFERROR(VLOOKUP(E42,'Liste du personnel'!B:C,2,0),\"\")","v":""}]
[null,null,null,null,null,{"$f":"IFERROR(VLOOKUP(E43,'Liste du personnel'!B:C,2,0),\"\")","v":""}]
[null,null,null,null,null,{"$f":"IFERROR(VLOOKUP(E44,'Liste du personnel'!B:C,2,0),\"\")","v":""}]
[null,null,null,null,null,{"$f":"IFERROR(VLOOKUP(E45,'Liste du personnel'!B:C,2,0),\"\")","v":""}]
[null,null,null,null,null,{"$f":"IFERROR(VLOOKUP(E46,'Liste du personnel'!B:C,2,0),\"\")","v":""}]
[null,null,null,null,null,{"$f":"IFERROR(VLOOKUP(E47,'Liste du personnel'!B:C,2,0),\"\")","v":""}]
[null,null,null,null,null,{"$f":"IFERROR(VLOOKUP(E48,'Liste du personnel'!B:C,2,0),\"\")","v":""}]
[null,null,null,null,null,{"$f":"IFERROR(VLOOKUP(E49,'Liste du personnel'!B:C,2,0),\"\")","v":""}]
[null,null,null,null,null,{"$f":"IFERROR(VLOOKUP(E50,'Liste du personnel'!B:C,2,0),\"\")","v":""}]
[null,null,null,null,null,{"$f":"IFERROR(VLOOKUP(E51,'Liste du personnel'!B:C,2,0),\"\")","v":""}]
[null,null,null,null,null,{"$f":"IFERROR(VLOOKUP(E52,'Liste du personnel'!B:C,2,0),\"\")","v":""}]
[null,null,null,null,null,{"$f":"IFERROR(VLOOKUP(E53,'Liste du personnel'!B:C,2,0),\"\")","v":""}]
[null,null,null,null,null,{"$f":"IFERROR(VLOOKUP(E54,'Liste du personnel'!B:C,2,0),\"\")","v":""}]
[null,null,null,null,null,{"$f":"IFERROR(VLOOKUP(E55,'Liste du personnel'!B:C,2,0),\"\")","v":""}]
[null,null,null,null,null,{"$f":"IFERROR(VLOOKUP(E56,'Liste du personnel'!B:C,2,0),\"\")","v":""}]
[null,null,null,null,null,{"$f":"IFERROR(VLOOKUP(E57,'Liste du personnel'!B:C,2,0),\"\")","v":""}]
[null,null,null,null,null,{"$f":"IFERROR(VLOOKUP(E58,'Liste du personnel'!B:C,2,0),\"\")","v":""}]
[null,null,null,null,null,{"$f":"IFERROR(VLOOKUP(E59,'Liste du personnel'!B:C,2,0),\"\")","v":""}]
[null,null,null,null,null,{"$f":"IFERROR(VLOOKUP(E60,'Liste du personnel'!B:C,2,0),\"\")","v":""}]
[null,null,null,null,null,{"$f":"IFERROR(VLOOKUP(E61,'Liste du personnel'!B:C,2,0),\"\")","v":""}]
[null,null,null,null,null,{"$f":"IFERROR(VLOOKUP(E62,'Liste du personnel'!B:C,2,0),\"\")","v":""}]
[null,null,null,null,null,{"$f":"IFERROR(VLOOKUP(E63,'Liste du personnel'!B:C,2,0),\"\")","v":""}]
[null,null,null,null,null,{"$f":"IFERROR(VLOOKUP(E64,'Liste du personnel'!B:C,2,0),\"\")","v":""}]
[null,null,null,null,null,{"$f":"IFERROR(VLOOKUP(E65,'Liste du personnel'!B:C,2,0),\"\")","v":""}]
[null,null,null,null,null,{"$f":"IFERROR(VLOOKUP(E66,'Liste du personnel'!B:C,2,0),\"\")","v":""}]
[null,null,null,null,null,{"$f":"IFERROR(VLOOKUP(E67,'Liste du personnel'!B:C,2,0),\"\")","v":""}]
[null,null,null,null,null,{"$f":"IFERROR(VLOOKUP(E68,'Liste du personnel'!B:C,2,0),\"\")","v":""}]
[null,null,null,null,null,{"$f":"IFERROR(VLOOKUP(E69,'Liste du personnel'!B:C,2,0),\"\")","v":""}]
[null,null,null,null,null,{"$f":"IFERROR(VLOOKUP(E70,'Liste du personnel'!B:C,2,0),\"\")","v":""}]
[null,null,null,null,null,{"$f":"IFERROR(VLOOKUP(E71,'Liste du personnel'!B:C,2,0),\"\")","v":""}]
[null,null,null,null,null,{"$f":"IFERROR(VLOOKUP(E72,'Liste du personnel'!B:C,2,0),\"\")","v":""}]
[null,null,null,null,null,{"$f":"IFERROR(VLOOKUP(E73,'Liste du personnel'!B:C,2,0),\"\")","v":""}]
[null,null,null,null,null,{"$f":"IFERROR(VLOOKUP(E74,'Liste du personnel'!B:C,2,0),\"\")","v":""}]
[null,null,null,null,null,{"$f":"IFERROR(VLOOKUP(E75,'Liste du personnel'!B:C,2,0),\"\")","v":""}]
[null,null,null,null,null,{"$f":"IFERROR(VLOOKUP(E76,'Liste du personnel'!B:C,2,0),\"\")","v":""}]
[null,null,null,null,null,{"$f":"IFERROR(VLOOKUP(E77,'Liste du personnel'!B:C,2,0),\"\")","v":""}]
[null,null,null,null,null,{"$f":"IFERROR(VLOOKUP(E78,'Liste du personnel'!B:C,2,0),\"\")","v":""}]
[null,null,null,null,null,{"$f":"IFERROR(VLOOKUP(E79,'Liste du personnel'!B:C,2,0),\"\")","v":""}]
[null,null,null,null,null,{"$f":"IFERROR(VLOOKUP(E80,'Liste du personnel'!B:C,2,0),\"\")","v":""}]
[null,null,null,null,null,{"$f":"IFERROR(VLOOKUP(E81,'Liste du personnel'!B:C,2,0),\"\")","v":""}]
[null,null,null,null,null,{"$f":"IFERROR(VLOOKUP(E82,'Liste du personnel'!B:C,2,0),\"\")","v":""}]
[null,null,null,null,null,{"$f":"IFERROR(VLOOKUP(E83,'Liste du personnel'!B:C,2,0),\"\")","v":""}]
[null,null,null,null,null,{"$f":"IFERROR(VLOOKUP(E84,'Liste du personnel'!B:C,2,0),\"\")","v":""}]
[null,null,null,null,null,{"$f":"IFERROR(VLOOKUP(E85,'Liste du personnel'!B:C,2,0),\"\")","v":""}]
[null,null,null,null,null,{"$f":"IFERROR(VLOOKUP(E86,'Liste du personnel'!B:C,2,0),\"\")","v":""}]
[null,null,null,null,null,{"$f":"IFERROR(VLOOKUP(E87,'Liste du personnel'!B:C,2,0),\"\")","v":""}]
[null,null,null,null,null,{"$f":"IFERROR(VLOOKUP(E88,'Liste du personnel'!B:C,2,0),\"\")","v":""}]
[null,null,null,null,null,{"$f":"IFERROR(VLOOKUP(E89,'Liste du personnel'!B:C,2,0),\"\")","v":""}]
[null,null,null,null,null,{"$f":"IFERROR(VLOOKUP(E90,'Liste du personnel'!B:C,2,0),\"\")","v":""}]
[null,null,null,null,null,{"$f":"IFERROR(VLOOKUP(E91,'Liste du personnel'!B:C,2,0),\"\")","v":""}]
[null,null,null,null,null,{"$f":"IFERROR(VLOOKUP(E92,'Liste du personnel'!B:C,2,0),\"\")","v":""}]
[null,null,null,null,null,{"$f":"IFERROR(VLOOKUP(E93,'Liste du personnel'!B:C,2,0),\"\")","v":""}]
[null,null,null,null,null,{"$f":"IFERROR(VLOOKUP(E94,'Liste du personnel'!B:C,2,0),\"\")","v":""}]
[null,null,null,null,null,{"$f":"IFERROR(VLOOKUP(E95,'Liste du personnel'!B:C,2,0),\"\")","v":""}]
[null,null,null,null,null,{"$f":"IFERROR(VLOOKUP(E96,'Liste du personnel'!B:C,2,0),\"\")","v":""}]
[null,null,null,null,null,{"$f":"IFERROR(VLOOKUP(E97,'Liste du personnel'!B:C,2,0),\"\")","v":""}]
[null,null,null,null,null,{"$f":"IFERROR(VLOOKUP(E98,'Liste du personnel'!B:C,2,0),\"\")","v":""}]
[null,null,null,null,null,{"$f":"IFERROR(VLOOKUP(E99,'Liste du personnel'!B:C,2,0),\"\")","v":""}]
[null,null,null,null,null,{"$f":"IFERROR(VLOOKUP(E100,'Liste du personnel'!B:C,2,0),\"\")","v":""}]
[null,null,null,null,null,{"$f":"IFERROR(VLOOKUP(E101,'Liste du personnel'!B:C,2,0),\"\")","v":""}]
[null,null,null,null,null,{"$f":"IFERROR(VLOOKUP(E102,'Liste du personnel'!B:C,2,0),\"\")","v":""}]
[null,null,null,null,null,{"$f":"IFERROR(VLOOKUP(E103,'Liste du personnel'!B:C,2,0),\"\")","v":""}]
[null,null,null,null,null,{"$f":"IFERROR(VLOOKUP(E104,'Liste du personnel'!B:C,2,0),\"\")","v":""}]
[null,null,null,null,null,{"$f":"IFERROR(VLOOKUP(E105,'Liste du personnel'!B:C,2,0),\"\")","v":""}]
[null,null,null,null,null,{"$f":"IFERROR(VLOOKUP(E106,'Liste du personnel'!B:C,2,0),\"\")","v":""}]
[null,null,null,null,null,{"$f":"IFERROR(VLOOKUP(E107,'Liste du personnel'!B:C,2,0),\"\")","v":""}]
[null,null,null,null,null,{"$f":"IFERROR(VLOOKUP(E108,'Liste du personnel'!B:C,2,0),\"\")","v":""}]
[null,null,null,null,null,{"$f":"IFERROR(VLOOKUP(E109,'Liste du personnel'!B:C,2,0),\"\")","v":""}]
[null,null,null,null,null,{"$f":"IFERROR(VLOOKUP(E110,'Liste du personnel'!B:C,2,0),\"\")","v":""}]
[null,null,null,null,null,{"$f":"IFERROR(VLOOKUP(E111,'Liste du personnel'!B:C,2,0),\"\")","v":""}]
[null,null,null,null,null,{"$f":"IFERROR(VLOOKUP(E112,'Liste du personnel'!B:C,2,0),\"\")","v":""}]
[null,null,null,null,null,{"$f":"IFERROR(VLOOKUP(E113,'Liste du personnel'!B:C,2,0),\"\")","v":""}]
[null,null,null,null,null,{"$f":"IFERROR(VLOOKUP(E114,'Liste du personnel'!B:C,2,0),\"\")","v":""}]
[null,null,null,null,null,{"$f":"IFERROR(VLOOKUP(E115,'Liste du personnel'!B:C,2,0),\"\")","v":""}]
[null,null,null,null,null,{"$f":"IFERROR(VLOOKUP(E116,'Liste du personnel'!B:C,2,0),\"\")","v":""}]
[null,null,null,null,null,{"$f":"IFERROR(VLOOKUP(E117,'Liste du personnel'!B:C,2,0),\"\")","v":""}]
[null,null,null,null,null,{"$f":"IFERROR(VLOOKUP(E118,'Liste du personnel'!B:C,2,0),\"\")","v":""}]
[null,null,null,null,null,{"$f":"IFERROR(VLOOKUP(E119,'Liste du personnel'!B:C,2,0),\"\")","v":""}]
[null,null,null,null,null,{"$f":"IFERROR(VLOOKUP(E120,'Liste du personnel'!B:C,2,0),\"\")","v":""}]
[null,null,null,null,null,{"$f":"IFERROR(VLOOKUP(E121,'Liste du personnel'!B:C,2,0),\"\")","v":""}]
[null,null,null,null,null,{"$f":"IFERROR(VLOOKUP(E122,'Liste du personnel'!B:C,2,0),\"\")","v":""}]
[null,null,null,null,null,{"$f":"IFERROR(VLOOKUP(E123,'Liste du personnel'!B:C,2,0),\"\")","v":""}]
[null,null,null,null,null,{"$f":"IFERROR(VLOOKUP(E124,'Liste du personnel'!B:C,2,0),\"\")","v":""}]
[null,null,null,null,null,{"$f":"IFERROR(VLOOKUP(E125,'Liste du personnel'!B:C,2,0),\"\")","v":""}]
[null,null,null,null,null,{"$f":"IFERROR(VLOOKUP(E126,'Liste du personnel'!B:C,2,0),\"\")","v":""}]
[null,null,null,null,null,{"$f":"IFERROR(VLOOKUP(E127,'Liste du personnel'!B:C,2,0),\"\")","v":""}]
[null,null,null,null,null,{"$f":"IFERROR(VLOOKUP(E128,'Liste du personnel'!B:C,2,0),\"\")","v":""}]
[null,null,null,null,null,{"$f":"IFERROR(VLOOKUP(E129,'Liste du personnel'!B:C,2,0),\"\")","v":""}]
[null,null,null,null,null,{"$f":"IFERROR(VLOOKUP(E130,'Liste du personnel'!B:C,2,0),\"\")","v":""}]
[null,null,null,null,null,{"$f":"IFERROR(VLOOKUP(E131,'Liste du personnel'!B:C,2,0),\"\")","v":""}]
[null,null,null,null,null,{"$f":"IFERROR(VLOOKUP(E132,'Liste du personnel'!B:C,2,0),\"\")","v":""}]
[null,null,null,null,null,{"$f":"IFERROR(VLOOKUP(E133,'Liste du personnel'!B:C,2,0),\"\")","v":""}]
[null,null,null,null,null,{"$f":"IFERROR(VLOOKUP(E134,'Liste du personnel'!B:C,2,0),\"\")","v":""}]
[null,null,null,null,null,{"$f":"IFERROR(VLOOKUP(E135,'Liste du personnel'!B:C,2,0),\"\")","v":""}]
[null,null,null,null,null,{"$f":"IFERROR(VLOOKUP(E136,'Liste du personnel'!B:C,2,0),\"\")","v":""}]
[null,null,null,null,null,{"$f":"IFERROR(VLOOKUP(E137,'Liste du personnel'!B:C,2,0),\"\")","v":""}]
[null,null,null,null,null,{"$f":"IFERROR(VLOOKUP(E138,'Liste du personnel'!B:C,2,0),\"\")","v":""}]
[null,null,null,null,null,{"$f":"IFERROR(VLOOKUP(E139,'Liste du personnel'!B:C,2,0),\"\")","v":""}]
[null,null,null,null,null,{"$f":"IFERROR(VLOOKUP(E140,'Liste du personnel'!B:C,2,0),\"\")","v":""}]
[null,null,null,null,null,{"$f":"IFERROR(VLOOKUP(E141,'Liste du personnel'!B:C,2,0),\"\")","v":""}]
[null,null,null,null,null,{"$f":"IFERROR(VLOOKUP(E142,'Liste du personnel'!B:C,2,0),\"\")","v":""}]
[null,null,null,null,null,{"$f":"IFERROR(VLOOKUP(E143,'Liste du personnel'!B:C,2,0),\"\")","v":""}]
[null,null,null,null,null,{"$f":"IFERROR(VLOOKUP(E144,'Liste du personnel'!B:C,2,0),\"\")","v":""}]
[null,null,null,null,null,{"$f":"IFERROR(VLOOKUP(E145,'Liste du personnel'!B:C,2,0),\"\")","v":""}]
[null,null,null,null,null,{"$f":"IFERROR(VLOOKUP(E146,'Liste du personnel'!B:C,2,0),\"\")","v":""}]
[null,null,null,null,null,{"$f":"IFERROR(VLOOKUP(E147,'Liste du personnel'!B:C,2,0),\"\")","v":""}]
[null,null,null,null,null,{"$f":"IFERROR(VLOOKUP(E148,'Liste du personnel'!B:C,2,0),\"\")","v":""}]
[null,null,null,null,null,{"$f":"IFERROR(VLOOKUP(E149,'Liste du personnel'!B:C,2,0),\"\")","v":""}]
[null,null,null,null,null,{"$f":"IFERROR(VLOOKUP(E150,'Liste du personnel'!B:C,2,0),\"\")","v":""}]
[null,null,null,null,null,{"$f":"IFERROR(VLOOKUP(E151,'Liste du personnel'!B:C,2,0),\"\")","v":""}]
[null,null,null,null,null,{"$f":"IFERROR(VLOOKUP(E152,'Liste du personnel'!B:C,2,0),\"\")","v":""}]
[null,null,null,null,null,{"$f":"IFERROR(VLOOKUP(E153,'Liste du personnel'!B:C,2,0),\"\")","v":""}]
[null,null,null,null,null,{"$f":"IFERROR(VLOOKUP(E154,'Liste du personnel'!B:C,2,0),\"\")","v":""}]
[null,null,null,null,null,{"$f":"IFERROR(VLOOKUP(E155,'Liste du personnel'!B:C,2,0),\"\")","v":""}]
[null,null,null,null,null,{"$f":"IFERROR(VLOOKUP(E156,'Liste du personnel'!B:C,2,0),\"\")","v":""}]
[null,null,null,null,null,{"$f":"IFERROR(VLOOKUP(E157,'Liste du personnel'!B:C,2,0),\"\")","v":""}]
[null,null,null,null,null,{"$f":"IFERROR(VLOOKUP(E158,'Liste du personnel'!B:C,2,0),\"\")","v":""}]
[null,null,null,null,null,{"$f":"IFERROR(VLOOKUP(E159,'Liste du personnel'!B:C,2,0),\"\")","v":""}]
[null,null,null,null,null,{"$f":"IFERROR(VLOOKUP(E160,'Liste du personnel'!B:C,2,0),\"\")","v":""}]
[null,null,null,null,null,{"$f":"IFERROR(VLOOKUP(E161,'Liste du personnel'!B:C,2,0),\"\")","v":""}]
[null,null,null,null,null,{"$f":"IFERROR(VLOOKUP(E162,'Liste du personnel'!B:C,2,0),\"\")","v":""}]
[null,null,null,null,null,{"$f":"IFERROR(VLOOKUP(E163,'Liste du personnel'!B:C,2,0),\"\")","v":""}]
[null,null,null,null,null,{"$f":"IFERROR(VLOOKUP(E164,'Liste du personnel'!B:C,2,0),\"\")","v":""}]
[null,null,null,null,null,{"$f":"IFERROR(VLOOKUP(E165,'Liste du personnel'!B:C,2,0),\"\")","v":""}]
[null,null,null,null,null,{"$f":"IFERROR(VLOOKUP(E166,'Liste du personnel'!B:C,2,0),\"\")","v":""}]
[null,null,null,null,null,{"$f":"IFERROR(VLOOKUP(E167,'Liste du personnel'!B:C,2,0),\"\")","v":""}]
[null,null,null,null,null,{"$f":"IFERROR(VLOOKUP(E168,'Liste du personnel'!B:C,2,0),\"\")","v":""}]
[null,null,null,null,null,{"$f":"IFERROR(VLOOKUP(E169,'Liste du personnel'!B:C,2,0),\"\")","v":""}]
[null,null,null,null,null,{"$f":"IFERROR(VLOOKUP(E170,'Liste du personnel'!B:C,2,0),\"\")","v":""}]
[null,null,null,null,null,{"$f":"IFERROR(VLOOKUP(E171,'Liste du personnel'!B:C,2,0),\"\")","v":""}]
[null,null,null,null,null,{"$f":"IFERROR(VLOOKUP(E172,'Liste du personnel'!B:C,2,0),\"\")","v":""}]
[null,null,null,null,null,{"$f":"IFERROR(VLOOKUP(E173,'Liste du personnel'!B:C,2,0),\"\")","v":""}]
[null,null,null,null,null,{"$f":"IFERROR(VLOOKUP(E174,'Liste du personnel'!B:C,2,0),\"\")","v":""}]
[null,null,null,null,null,{"$f":"IFERROR(VLOOKUP(E175,'Liste du personnel'!B:C,2,0),\"\")","v":""}]
[null,null,null,null,null,{"$f":"IFERROR(VLOOKUP(E176,'Liste du personnel'!B:C,2,0),\"\")","v":""}]
[null,null,null,null,null,{"$f":"IFERROR(VLOOKUP(E177,'Liste du personnel'!B:C,2,0),\"\")","v":""}]
[null,null,null,null,null,{"$f":"IFERROR(VLOOKUP(E178,'Liste du personnel'!B:C,2,0),\"\")","v":""}]
[null,null,null,null,null,{"$f":"IFERROR(VLOOKUP(E179,'Liste du personnel'!B:C,2,0),\"\")","v":""}]
[null,null,null,null,null,{"$f":"IFERROR(VLOOKUP(E180,'Liste du personnel'!B:C,2,0),\"\")","v":""}]
[null,null,null,null,null,{"$f":"IFERROR(VLOOKUP(E181,'Liste du personnel'!B:C,2,0),\"\")","v":""}]
[null,null,null,null,null,{"$f":"IFERROR(VLOOKUP(E182,'Liste du personnel'!B:C,2,0),\"\")","v":""}]
[null,null,null,null,null,{"$f":"IFERROR(VLOOKUP(E183,'Liste du personnel'!B:C,2,0),\"\")","v":""}]
[null,null,null,null,null,{"$f":"IFERROR(VLOOKUP(E184,'Liste du personnel'!B:C,2,0),\"\")","v":""}]
[null,null,null,null,null,{"$f":"IFERROR(VLOOKUP(E185,'Liste du personnel'!B:C,2,0),\"\")","v":""}]
[null,null,null,null,null,{"$f":"IFERROR(VLOOKUP(E186,'Liste du personnel'!B:C,2,0),\"\")","v":""}]
[null,null,null,null,null,{"$f":"IFERROR(VLOOKUP(E187,'Liste du personnel'!B:C,2,0),\"\")","v":""}]
[null,null,null,null,null,{"$f":"IFERROR(VLOOKUP(E188,'Liste du personnel'!B:C,2,0),\"\")","v":""}]
[null,null,null,null,null,{"$f":"IFERROR(VLOOKUP(E189,'Liste du personnel'!B:C,2,0),\"\")","v":""}]
[null,null,null,null,null,{"$f":"IFERROR(VLOOKUP(E190,'Liste du personnel'!B:C,2,0),\"\")","v":""}]
[null,null,null,null,null,{"$f":"IFERROR(VLOOKUP(E191,'Liste du personnel'!B:C,2,0),\"\")","v":""}]
[null,null,null,null,null,{"$f":"IFERROR(VLOOKUP(E192,'Liste du personnel'!B:C,2,0),\"\")","v":""}]
[null,null,null,null,null,{"$f":"IFERROR(VLOOKUP(E193,'Liste du personnel'!B:C,2,0),\"\")","v":""}]
[null,null,null,null,null,{"$f":"IFERROR(VLOOKUP(E194,'Liste du personnel'!B:C,2,0),\"\")","v":""}]
[null,null,null,null,null,{"$f":"IFERROR(VLOOKUP(E195,'Liste du personnel'!B:C,2,0),\"\")","v":""}]
[null,null,null,null,null,{"$f":"IFERROR(VLOOKUP(E196,'Liste du personnel'!B:C,2,0),\"\")","v":""}]
[null,null,null,null,null,{"$f":"IFERROR(VLOOKUP(E197,'Liste du personnel'!B:C,2,0),\"\")","v":""}]
[null,null,null,null,null,{"$f":"IFERROR(VLOOKUP(E198,'Liste du personnel'!B:C,2,0),\"\")","v":""}]
[null,null,null,null,null,{"$f":"IFERROR(VLOOKUP(E199,'Liste du personnel'!B:C,2,0),\"\")","v":""}]
[null,null,null,null,null,{"$f":"IFERROR(VLOOKUP(E200,'Liste du personnel'!B:C,2,0),\"\")","v":""}]
[null,null,null,null,null,{"$f":"IFERROR(VLOOKUP(E201,'Liste du personnel'!B:C,2,0),\"\")","v":""}]
[null,null,null,null,null,{"$f":"IFERROR(VLOOKUP(E202,'Liste du personnel'!B:C,2,0),\"\")","v":""}]
[null,null,null,null,null,{"$f":"IFERROR(VLOOKUP(E203,'Liste du personnel'!B:C,2,0),\"\")","v":""}]
[null,null,null,null,null,{"$f":"IFERROR(VLOOKUP(E204,'Liste du personnel'!B:C,2,0),\"\")","v":""}]
[null,null,null,null,null,{"$f":"IFERROR(VLOOKUP(E205,'Liste du personnel'!B:C,2,0),\"\")","v":""}]
[null,null,null,null,null,{"$f":"IFERROR(VLOOKUP(E206,'Liste du personnel'!B:C,2,0),\"\")","v":""}]
[null,null,null,null,null,{"$f":"IFERROR(VLOOKUP(E207,'Liste du personnel'!B:C,2,0),\"\")","v":""}]
[null,null,null,null,null,{"$f":"IFERROR(VLOOKUP(E208,'Liste du personnel'!B:C,2,0),\"\")","v":""}]
[null,null,null,null,null,{"$f":"IFERROR(VLOOKUP(E209,'Liste du personnel'!B:C,2,0),\"\")","v":""}]
[null,null,null,null,null,{"$f":"IFERROR(VLOOKUP(E210,'Liste du personnel'!B:C,2,0),\"\")","v":""}]
[null,null,null,null,null,{"$f":"IFERROR(VLOOKUP(E211,'Liste du personnel'!B:C,2,0),\"\")","v":""}]
[null,null,null,null,null,{"$f":"IFERROR(VLOOKUP(E212,'Liste du personnel'!B:C,2,0),\"\")","v":""}]
[null,null,null,null,null,{"$f":"IFERROR(VLOOKUP(E213,'Liste du personnel'!B:C,2,0),\"\")","v":""}]
[null,null,null,null,null,{"$f":"IFERROR(VLOOKUP(E214,'Liste du personnel'!B:C,2,0),\"\")","v":""}]
[null,null,null,null,null,{"$f":"IFERROR(VLOOKUP(E215,'Liste du personnel'!B:C,2,0),\"\")","v":""}]
[null,null,null,null,null,{"$f":"IFERROR(VLOOKUP(E216,'Liste du personnel'!B:C,2,0),\"\")","v":""}]
[null,null,null,null,null,{"$f":"IFERROR(VLOOKUP(E217,'Liste du personnel'!B:C,2,0),\"\")","v":""}]
[null,null,null,null,null,{"$f":"IFERROR(VLOOKUP(E218,'Liste du personnel'!B:C,2,0),\"\")","v":""}]
[null,null,null,null,null,{"$f":"IFERROR(VLOOKUP(E219,'Liste du personnel'!B:C,2,0),\"\")","v":""}]
[null,null,null,null,null,{"$f":"IFERROR(VLOOKUP(E220,'Liste du personnel'!B:C,2,0),\"\")","v":""}]
[null,null,null,null,null,{"$f":"IFERROR(VLOOKUP(E221,'Liste du personnel'!B:C,2,0),\"\")","v":""}]
[null,null,null,null,null,{"$f":"IFERROR(VLOOKUP(E222,'Liste du personnel'!B:C,2,0),\"\")","v":""}]
[null,null,null,null,null,{"$f":"IFERROR(VLOOKUP(E223,'Liste du personnel'!B:C,2,0),\"\")","v":""}]
[null,null,null,null,null,{"$f":"IFERROR(VLOOKUP(E224,'Liste du personnel'!B:C,2,0),\"\")","v":""}]
[null,null,null,null,null,{"$f":"IFERROR(VLOOKUP(E225,'Liste du personnel'!B:C,2,0),\"\")","v":""}]
[null,null,null,null,null,{"$f":"IFERROR(VLOOKUP(E226,'Liste du personnel'!B:C,2,0),\"\")","v":""}]
[null,null,null,null,null,{"$f":"IFERROR(VLOOKUP(E227,'Liste du personnel'!B:C,2,0),\"\")","v":""}]
[null,null,null,null,null,{"$f":"IFERROR(VLOOKUP(E228,'Liste du personnel'!B:C,2,0),\"\")","v":""}]
[null,null,null,null,null,{"$f":"IFERROR(VLOOKUP(E229,'Liste du personnel'!B:C,2,0),\"\")","v":""}]
[null,null,null,null,null,{"$f":"IFERROR(VLOOKUP(E230,'Liste du personnel'!B:C,2,0),\"\")","v":""}]
[null,null,null,null,null,{"$f":"IFERROR(VLOOKUP(E231,'Liste du personnel'!B:C,2,0),\"\")","v":""}]
[null,null,null,null,null,{"$f":"IFERROR(VLOOKUP(E232,'Liste du personnel'!B:C,2,0),\"\")","v":""}]
[null,null,null,null,null,{"$f":"IFERROR(VLOOKUP(E233,'Liste du personnel'!B:C,2,0),\"\")","v":""}]
[null,null,null,null,null,{"$f":"IFERROR(VLOOKUP(E234,'Liste du personnel'!B:C,2,0),\"\")","v":""}]
[null,null,null,null,null,{"$f":"IFERROR(VLOOKUP(E235,'Liste du personnel'!B:C,2,0),\"\")","v":""}]
[null,null,null,null,null,{"$f":"IFERROR(VLOOKUP(E236,'Liste du personnel'!B:C,2,0),\"\")","v":""}]
[null,null,null,null,null,{"$f":"IFERROR(VLOOKUP(E237,'Liste du personnel'!B:C,2,0),\"\")","v":""}]
[null,null,null,null,null,{"$f":"IFERROR(VLOOKUP(E238,'Liste du personnel'!B:C,2,0),\"\")","v":""}]
[null,null,null,null,null,{"$f":"IFERROR(VLOOKUP(E239,'Liste du personnel'!B:C,2,0),\"\")","v":""}]
[null,null,null,null,null,{"$f":"IFERROR(VLOOKUP(E240,'Liste du personnel'!B:C,2,0),\"\")","v":""}]
[null,null,null,null,null,{"$f":"IFERROR(VLOOKUP(E241,'Liste du personnel'!B:C,2,0),\"\")","v":""}]
[null,null,null,null,null,{"$f":"IFERROR(VLOOKUP(E242,'Liste du personnel'!B:C,2,0),\"\")","v":""}]
[null,null,null,null,null,{"$f":"IFERROR(VLOOKUP(E243,'Liste du personnel'!B:C,2,0),\"\")","v":""}]
[null,null,null,null,null,{"$f":"IFERROR(VLOOKUP(E244,'Liste du personnel'!B:C,2,0),\"\")","v":""}]
[null,null,null,null,null,{"$f":"IFERROR(VLOOKUP(E245,'Liste du personnel'!B:C,2,0),\"\")","v":""}]
[null,null,null,null,null,{"$f":"IFERROR(VLOOKUP(E246,'Liste du personnel'!B:C,2,0),\"\")","v":""}]
[null,null,null,null,null,{"$f":"IFERROR(VLOOKUP(E247,'Liste du personnel'!B:C,2,0),\"\")","v":""}]
[null,null,null,null,null,{"$f":"IFERROR(VLOOKUP(E248,'Liste du personnel'!B:C,2,0),\"\")","v":""}]
[null,null,null,null,null,{"$f":"IFERROR(VLOOKUP(E249,'Liste du personnel'!B:C,2,0),\"\")","v":""}]
[null,null,null,null,null,{"$f":"IFERROR(VLOOKUP(E250,'Liste du personnel'!B:C,2,0),\"\")","v":""}]
[null,null,null,null,null,{"$f":"IFERROR(VLOOKUP(E251,'Liste du personnel'!B:C,2,0),\"\")","v":""}]
[null,null,null,null,null,{"$f":"IFERROR(VLOOKUP(E252,'Liste du personnel'!B:C,2,0),\"\")","v":""}]
[null,null,null,null,null,{"$f":"IFERROR(VLOOKUP(E253,'Liste du personnel'!B:C,2,0),\"\")","v":""}]
[null,null,null,null,null,{"$f":"IFERROR(VLOOKUP(E254,'Liste du personnel'!B:C,2,0),\"\")","v":""}]
[null,null,null,null,null,{"$f":"IFERROR(VLOOKUP(E255,'Liste du personnel'!B:C,2,0),\"\")","v":""}]
[null,null,null,null,null,{"$f":"IFERROR(VLOOKUP(E256,'Liste du personnel'!B:C,2,0),\"\")","v":""}]
[null,null,null,null,null,{"$f":"IFERROR(VLOOKUP(E257,'Liste du personnel'!B:C,2,0),\"\")","v":""}]
[null,null,null,null,null,{"$f":"IFERROR(VLOOKUP(E258,'Liste du personnel'!B:C,2,0),\"\")","v":""}]
[null,null,null,null,null,{"$f":"IFERROR(VLOOKUP(E259,'Liste du personnel'!B:C,2,0),\"\")","v":""}]
[null,null,null,null,null,{"$f":"IFERROR(VLOOKUP(E260,'Liste du personnel'!B:C,2,0),\"\")","v":""}]
[null,null,null,null,null,{"$f":"IFERROR(VLOOKUP(E261,'Liste du personnel'!B:C,2,0),\"\")","v":""}]
[null,null,null,null,null,{"$f":"IFERROR(VLOOKUP(E262,'Liste du personnel'!B:C,2,0),\"\")","v":""}]
[null,null,null,null,null,{"$f":"IFERROR(VLOOKUP(E263,'Liste du personnel'!B:C,2,0),\"\")","v":""}]
[null,null,null,null,null,{"$f":"IFERROR(VLOOKUP(E264,'Liste du personnel'!B:C,2,0),\"\")","v":""}]
[null,null,null,null,null,{"$f":"IFERROR(VLOOKUP(E265,'Liste du personnel'!B:C,2,0),\"\")","v":""}]
[null,null,null,null,null,{"$f":"IFERROR(VLOOKUP(E266,'Liste du personnel'!B:C,2,0),\"\")","v":""}]
[null,null,null,null,null,{"$f":"IFERROR(VLOOKUP(E267,'Liste du personnel'!B:C,2,0),\"\")","v":""}]
[null,null,null,null,null,{"$f":"IFERROR(VLOOKUP(E268,'Liste du personnel'!B:C,2,0),\"\")","v":""}]
[null,null,null,null,null,{"$f":"IFERROR(VLOOKUP(E269,'Liste du personnel'!B:C,2,0),\"\")","v":""}]
[null,null,null,null,null,{"$f":"IFERROR(VLOOKUP(E270,'Liste du personnel'!B:C,2,0),\"\")","v":""}]
[null,null,null,null,null,{"$f":"IFERROR(VLOOKUP(E271,'Liste du personnel'!B:C,2,0),\"\")","v":""}]
[null,null,null,null,null,{"$f":"IFERROR(VLOOKUP(E272,'Liste du personnel'!B:C,2,0),\"\")","v":""}]
[null,null,null,null,null,{"$f":"IFERROR(VLOOKUP(E273,'Liste du personnel'!B:C,2,0),\"\")","v":""}]
[null,null,null,null,null,{"$f":"IFERROR(VLOOKUP(E274,'Liste du personnel'!B:C,2,0),\"\")","v":""}]
[null,null,null,null,null,{"$f":"IFERROR(VLOOKUP(E275,'Liste du personnel'!B:C,2,0),\"\")","v":""}]
[null,null,null,null,null,{"$f":"IFERROR(VLOOKUP(E276,'Liste du personnel'!B:C,2,0),\"\")","v":""}]
[null,null,null,null,null,{"$f":"IFERROR(VLOOKUP(E277,'Liste du personnel'!B:C,2,0),\"\")","v":""}]
[null,null,null,null,null,{"$f":"IFERROR(VLOOKUP(E278,'Liste du personnel'!B:C,2,0),\"\")","v":""}]
[null,null,null,null,null,{"$f":"IFERROR(VLOOKUP(E279,'Liste du personnel'!B:C,2,0),\"\")","v":""}]
[null,null,null,null,null,{"$f":"IFERROR(VLOOKUP(E280,'Liste du personnel'!B:C,2,0),\"\")","v":""}]
[null,null,null,null,null,{"$f":"IFERROR(VLOOKUP(E281,'Liste du personnel'!B:C,2,0),\"\")","v":""}]
[null,null,null,null,null,{"$f":"IFERROR(VLOOKUP(E282,'Liste du personnel'!B:C,2,0),\"\")","v":""}]
[null,null,null,null,null,{"$f":"IFERROR(VLOOKUP(E283,'Liste du personnel'!B:C,2,0),\"\")","v":""}]
[null,null,null,null,null,{"$f":"IFERROR(VLOOKUP(E284,'Liste du personnel'!B:C,2,0),\"\")","v":""}]
[null,null,null,null,null,{"$f":"IFERROR(VLOOKUP(E285,'Liste du personnel'!B:C,2,0),\"\")","v":""}]
[null,null,null,null,null,{"$f":"IFERROR(VLOOKUP(E286,'Liste du personnel'!B:C,2,0),\"\")","v":""}]
[null,null,null,null,null,{"$f":"IFERROR(VLOOKUP(E287,'Liste du personnel'!B:C,2,0),\"\")","v":""}]
[null,null,null,null,null,{"$f":"IFERROR(VLOOKUP(E288,'Liste du personnel'!B:C,2,0),\"\")","v":""}]
[null,null,null,null,null,{"$f":"IFERROR(VLOOKUP(E289,'Liste du personnel'!B:C,2,0),\"\")","v":""}]
[null,null,null,null,null,{"$f":"IFERROR(VLOOKUP(E290,'Liste du personnel'!B:C,2,0),\"\")","v":""}]
[null,null,null,null,null,{"$f":"IFERROR(VLOOKUP(E291,'Liste du personnel'!B:C,2,0),\"\")","v":""}]
[null,null,null,null,null,{"$f":"IFERROR(VLOOKUP(E292,'Liste du personnel'!B:C,2,0),\"\")","v":""}]
[null,null,null,null,null,{"$f":"IFERROR(VLOOKUP(E293,'Liste du personnel'!B:C,2,0),\"\")","v":""}]
[null,null,null,null,null,{"$f":"IFERROR(VLOOKUP(E294,'Liste du personnel'!B:C,2,0),\"\")","v":""}]
[null,null,null,null,null,{"$f":"IFERROR(VLOOKUP(E295,'Liste du personnel'!B:C,2,0),\"\")","v":""}]
[null,null,null,null,null,{"$f":"IFERROR(VLOOKUP(E296,'Liste du personnel'!B:C,2,0),\"\")","v":""}]
[null,null,null,null,null,{"$f":"IFERROR(VLOOKUP(E297,'Liste du personnel'!B:C,2,0),\"\")","v":""}]
[null,null,null,null,null,{"$f":"IFERROR(VLOOKUP(E298,'Liste du personnel'!B:C,2,0),\"\")","v":""}]
[null,null,null,null,null,{"$f":"IFERROR(VLOOKUP(E299,'Liste du personnel'!B:C,2,0),\"\")","v":""}]
[null,null,null,null,null,{"$f":"IFERROR(VLOOKUP(E300,'Liste du personnel'!B:C,2,0),\"\")","v":""}]
[null,null,null,null,null,{"$f":"IFERROR(VLOOKUP(E301,'Liste du personnel'!B:C,2,0),\"\")","v":""}]
[null,null,null,null,null,{"$f":"IFERROR(VLOOKUP(E302,'Liste du personnel'!B:C,2,0),\"\")","v":""}]
[null,null,null,null,null,{"$f":"IFERROR(VLOOKUP(E303,'Liste du personnel'!B:C,2,0),\"\")","v":""}]
[null,null,null,null,null,{"$f":"IFERROR(VLOOKUP(E304,'Liste du personnel'!B:C,2,0),\"\")","v":""}]
[null,null,null,null,null,{"$f":"IFERROR(VLOOKUP(E305,'Liste du personnel'!B:C,2,0),\"\")","v":""}]
[null,null,null,null,null,{"$f":"IFERROR(VLOOKUP(E306,'Liste du personnel'!B:C,2,0),\"\")","v":""}]
[null,null,null,null,null,{"$f":"IFERROR(VLOOKUP(E307,'Liste du personnel'!B:C,2,0),\"\")","v":""}]
[null,null,null,null,null,{"$f":"IFERROR(VLOOKUP(E308,'Liste du personnel'!B:C,2,0),\"\")","v":""}]
[null,null,null,null,null,{"$f":"IFERROR(VLOOKUP(E309,'Liste du personnel'!B:C,2,0),\"\")","v":""}]
[null,null,null,null,null,{"$f":"IFERROR(VLOOKUP(E310,'Liste du personnel'!B:C,2,0),\"\")","v":""}]
[null,null,null,null,null,{"$f":"IFERROR(VLOOKUP(E311,'Liste du personnel'!B:C,2,0),\"\")","v":""}]
[null,null,null,null,null,{"$f":"IFERROR(VLOOKUP(E312,'Liste du personnel'!B:C,2,0),\"\")","v":""}]
[null,null,null,null,null,{"$f":"IFERROR(VLOOKUP(E313,'Liste du personnel'!B:C,2,0),\"\")","v":""}]
[null,null,null,null,null,{"$f":"IFERROR(VLOOKUP(E314,'Liste du personnel'!B:C,2,0),\"\")","v":""}]
[null,null,null,null,null,{"$f":"IFERROR(VLOOKUP(E315,'Liste du personnel'!B:C,2,0),\"\")","v":""}]
[null,null,null,null,null,{"$f":"IFERROR(VLOOKUP(E316,'Liste du personnel'!B:C,2,0),\"\")","v":""}]
[null,null,null,null,null,{"$f":"IFERROR(VLOOKUP(E317,'Liste du personnel'!B:C,2,0),\"\")","v":""}]
[null,null,null,null,null,{"$f":"IFERROR(VLOOKUP(E318,'Liste du personnel'!B:C,2,0),\"\")","v":""}]
[null,null,null,null,null,{"$f":"IFERROR(VLOOKUP(E319,'Liste du personnel'!B:C,2,0),\"\")","v":""}]
[null,null,null,null,null,{"$f":"IFERROR(VLOOKUP(E320,'Liste du personnel'!B:C,2,0),\"\")","v":""}]
[null,null,null,null,null,{"$f":"IFERROR(VLOOKUP(E321,'Liste du personnel'!B:C,2,0),\"\")","v":""}]
[null,null,null,null,null,{"$f":"IFERROR(VLOOKUP(E322,'Liste du personnel'!B:C,2,0),\"\")","v":""}]
[null,null,null,null,null,{"$f":"IFERROR(VLOOKUP(E323,'Liste du personnel'!B:C,2,0),\"\")","v":""}]
[null,null,null,null,null,{"$f":"IFERROR(VLOOKUP(E324,'Liste du personnel'!B:C,2,0),\"\")","v":""}]
[null,null,null,null,null,{"$f":"IFERROR(VLOOKUP(E325,'Liste du personnel'!B:C,2,0),\"\")","v":""}]
[null,null,null,null,null,{"$f":"IFERROR(VLOOKUP(E326,'Liste du personnel'!B:C,2,0),\"\")","v":""}]
[null,null,null,null,null,{"$f":"IFERROR(VLOOKUP(E327,'Liste du personnel'!B:C,2,0),\"\")","v":""}]
[null,null,null,null,null,{"$f":"IFERROR(VLOOKUP(E328,'Liste du personnel'!B:C,2,0),\"\")","v":""}]
[null,null,null,null,null,{"$f":"IFERROR(VLOOKUP(E329,'Liste du personnel'!B:C,2,0),\"\")","v":""}]
[null,null,null,null,null,{"$f":"IFERROR(VLOOKUP(E330,'Liste du personnel'!B:C,2,0),\"\")","v":""}]
[null,null,null,null,null,{"$f":"IFERROR(VLOOKUP(E331,'Liste du personnel'!B:C,2,0),\"\")","v":""}]
[null,null,null,null,null,{"$f":"IFERROR(VLOOKUP(E332,'Liste du personnel'!B:C,2,0),\"\")","v":""}]
[null,null,null,null,null,{"$f":"IFERROR(VLOOKUP(E333,'Liste du personnel'!B:C,2,0),\"\")","v":""}]
[null,null,null,null,null,{"$f":"IFERROR(VLOOKUP(E334,'Liste du personnel'!B:C,2,0),\"\")","v":""}]
[null,null,null,null,null,{"$f":"IFERROR(VLOOKUP(E335,'Liste du personnel'!B:C,2,0),\"\")","v":""}]
[null,null,null,null,null,{"$f":"IFERROR(VLOOKUP(E336,'Liste du personnel'!B:C,2,0),\"\")","v":""}]
[null,null,null,null,null,{"$f":"IFERROR(VLOOKUP(E337,'Liste du personnel'!B:C,2,0),\"\")","v":""}]
[null,null,null,null,null,{"$f":"IFERROR(VLOOKUP(E338,'Liste du personnel'!B:C,2,0),\"\")","v":""}]
[null,null,null,null,null,{"$f":"IFERROR(VLOOKUP(E339,'Liste du personnel'!B:C,2,0),\"\")","v":""}]
[null,null,null,null,null,{"$f":"IFERROR(VLOOKUP(E340,'Liste du personnel'!B:C,2,0),\"\")","v":""}]
[null,null,null,null,null,{"$f":"IFERROR(VLOOKUP(E341,'Liste du personnel'!B:C,2,0),\"\")","v":""}]
[null,null,null,null,null,{"$f":"IFERROR(VLOOKUP(E342,'Liste du personnel'!B:C,2,0),\"\")","v":""}]
[null,null,null,null,null,{"$f":"IFERROR(VLOOKUP(E343,'Liste du personnel'!B:C,2,0),\"\")","v":""}]
[null,null,null,null,null,{"$f":"IFERROR(VLOOKUP(E344,'Liste du personnel'!B:C,2,0),\"\")","v":""}]
[null,null,null,null,null,{"$f":"IFERROR(VLOOKUP(E345,'Liste du personnel'!B:C,2,0),\"\")","v":""}]
[null,null,null,null,null,{"$f":"IFERROR(VLOOKUP(E346,'Liste du personnel'!B:C,2,0),\"\")","v":""}]
[null,null,null,null,null,{"$f":"IFERROR(VLOOKUP(E347,'Liste du personnel'!B:C,2,0),\"\")","v":""}]
[null,null,null,null,null,{"$f":"IFERROR(VLOOKUP(E348,'Liste du personnel'!B:C,2,0),\"\")","v":""}]
[null,null,null,null,null,{"$f":"IFERROR(VLOOKUP(E349,'Liste du personnel'!B:C,2,0),\"\")","v":""}]
[null,null,null,null,null,{"$f":"IFERROR(VLOOKUP(E350,'Liste du personnel'!B:C,2,0),\"\")","v":""}]
[null,null,null,null,null,{"$f":"IFERROR(VLOOKUP(E351,'Liste du personnel'!B:C,2,0),\"\")","v":""}]
[null,null,null,null,null,{"$f":"IFERROR(VLOOKUP(E352,'Liste du personnel'!B:C,2,0),\"\")","v":""}]
[null,null,null,null,null,{"$f":"IFERROR(VLOOKUP(E353,'Liste du personnel'!B:C,2,0),\"\")","v":""}]
[null,null,null,null,null,{"$f":"IFERROR(VLOOKUP(E354,'Liste du personnel'!B:C,2,0),\"\")","v":""}]
[null,null,null,null,null,{"$f":"IFERROR(VLOOKUP(E355,'Liste du personnel'!B:C,2,0),\"\")","v":""}]
[null,null,null,null,null,{"$f":"IFERROR(VLOOKUP(E356,'Liste du personnel'!B:C,2,0),\"\")","v":""}]
[null,null,null,null,null,{"$f":"IFERROR(VLOOKUP(E357,'Liste du personnel'!B:C,2,0),\"\")","v":""}]
[null,null,null,null,null,{"$f":"IFERROR(VLOOKUP(E358,'Liste du personnel'!B:C,2,0),\"\")","v":""}]
[null,null,null,null,null,{"$f":"IFERROR(VLOOKUP(E359,'Liste du personnel'!B:C,2,0),\"\")","v":""}]
[null,null,null,null,null,{"$f":"IFERROR(VLOOKUP(E360,'Liste du personnel'!B:C,2,0),\"\")","v":""}]

{"sheet":"Liste du personnel","index":2,"n_rows":103,"n_cols":3,"rows_kept":103,"cut":false,"hidden":false,"merged":[[1,1,1,2]]}
[]
[null,"Liste du personnel"]
[null,"N°Pers.","Noms"]
[null,1,"RAPHAEL"]
[null,2,"SAMUEL"]
[null,3,"ENZO"]
[null,4,"NICOLAS"]
[null,5,"HUGO"]
[null,6,"ANTOINE"]
[null,7,"FREDERIC"]
[null,8,"THEO"]
[null,9,"JEREMIE"]
[null,10,"ADOLPHE"]
[null,11,"MATHIS"]
[null,12,"ALEXANDRE"]
[null,13,"BENJAMIN"]
[null,14,"LUCAS"]
[null,15,"SEBASTIEN"]
[null,16,"THOMAS"]
[null,17,"MARTIAL"]
[null,18,"MOHAMED"]
[null,19,"JEAN"]
[null,20,"SAYAN"]
[null,21,"ROBIN"]
[null,22,"FREDERIQUE"]
[null,23,"GAETAN"]
[null,24,"ETIENNE"]
[null,25,"SACHA"]
[null,26,"ANTHONY"]
[null,27,"ENAUT"]
[null,28,"MAXIME"]
[null,29,"SOHAN"]
[null,30,"NATHAN"]
[null,31,"KEVIN"]
[null,32,"GORKA"]
[null,33,"JULIEN"]
[null,34,"MARINE"]
[null,35,"STEPHANE"]
[null,36,"FRANCO"]
[null,37,"YASSINE"]
[null,38,"GABRIEL"]
[null,39,"HAI"]
[null,40,"DAVID"]
[null,41,"KEPA"]
[null,42,"DYLAN"]
[null,43,"NANS"]
[null,44,"LEANDRE"]
[null,45,"NOEL"]
[null,46,"GUILLAUME"]
[null,47,"LOUIS"]
[null,48,"MICHEL"]
[null,49,"YANIS"]
[null,50,"JULES"]
[null,51,"SARAH"]
[null,52,"CAMILLE"]
[null,53,"NAYA"]
[null,54,"MANON"]
[null,55,"MAXIME"]
[null,56,"YSEE"]
[null,57,"INES"]
[null,58,"GAELLE"]
[null,59,"CLARA"]
[null,60,"MARGAUX"]
[null,61,"EMMA"]
[null,62,"MELENA"]
[null,63,"RIHANA"]
[null,64,"MAITENA"]
[null,65,"LAURA"]
[null,66,"MYRIAM"]
[null,67,"SALOME"]
[null,68,"CHLOE"]
[null,69,"CLAIRE"]
[null,70,"ANAYA"]
[null,71,"LAYANA"]
[null,72,"LINA"]
[null,73,"LISE"]
[null,74,"NELIA"]
[null,75,"CYPRINE"]
[null,76,"AMBRINE"]
[null,77,"ADELE"]
[null,78,"JADE"]
[null,79,"HAKIMA"]
[null,80,"AGATHE"]
[null,81,"AYANA"]
[null,82,"UHAINA"]
[null,83,"ALICE"]
[null,84,"JODIE"]
[null,85,"KENZA"]
[null,86,"CYRILLE"]
[null,87,"LEA"]
[null,88,"STELLA"]
[null,89,"DOMITILLE"]
[null,90,"SOHANE"]
[null,91,"PAULE"]
[null,92,"ENA"]
[null,93,"LAILA"]
[null,94,"INTZA"]
[null,95,"ALISON"]
[null,96,"OCEANE"]
[null,97,"HAIZE"]
[null,98,"MAGGY"]
[null,99,"MARIE"]
[null,100,"NATHALIE"]